{"text_format":"1","workbook":"xlsx","n_sheets":5,"sheets":["Start","Pricing Policy","No Units Sold","list (2)","list"],"not_rendered":{"charts":0,"images":0,"macros":1,"external_links":0,"defined_names":284,"comments":0,"pivot_tables":0},"unopened":[],"bounds":{"document_bytes":16777216,"sheet_cells":100000,"rows_first":2000,"rows_last":500,"rows_between":2000,"halvings":0,"cell_chars":16384,"cell_head_chars":4096},"cells_cut":0,"cells_raw":0,"read":"whole","date_system":"1900"}

{"sheet":"Start","index":0,"n_rows":19,"n_cols":5,"rows_kept":19,"cut":false,"hidden":false,"merged":[[8,4,8,12],[10,4,10,5],[5,2,6,12]]}
[]
[]
[null,null,"WHAT IF ANALYSIS"]
[]
[]
[null,null,"Use the five year spreadsheet to produce a simple 'what if' analysis for your clients."]
[]
[]
[null,null,"Client Name",null,"Demonstration Limited"]
[]
[]
[]
[]
[]
[]
[]
[]
[]
[null,null,"Version 5.00","2018-07-23"]

{"sheet":"Pricing Policy","index":1,"n_rows":19,"n_cols":14,"rows_kept":19,"cut":false,"hidden":false,"merged":[[18,8,18,10]]}
[null,null,null,null,null,null,null,null,null,null,null,null,null,"WHAT IF ANALYSIS"]
[]
[null,null,{"$f":"Start!E9","v":"Demonstration Limited"}]
[null,null,"\"What If\" Analysis"]
[null,null,"Pricing Policy"]
[]
[null,null,null,"Product /      Service Exisiting no. of units sold",null,"Average price per unit        £",null,"Existing Turnover             £",null,"Effect of price % increase",null,"Revised price per unit              £",null,"Revised Turnover       £"]
[]
[null,null,1,100000,null,46,null,{"$f":"F9*D9","v":4600000},null,8,null,{"$f":"F9*J9/100+F9","v":49.68},null,{"$f":"L9*D9","v":4968000}]
[]
[null,null,2,5000,null,15,null,{"$f":"F11*D11","v":75000},null,4,null,{"$f":"F11*J11/100+F11","v":15.6},null,{"$f":"L11*D11","v":78000}]
[]
[null,null,3,25000,null,50,null,{"$f":"F13*D13","v":1250000},null,14,null,57,null,1425000]
[]
[null,null,4,10000,null,17,null,{"$f":"F15*D15","v":170000},null,11,null,18.87,null,188700]
[]
[null,null,5,3000,null,12.5,null,{"$f":"F17*D17","v":37500},null,6,null,13.25,null,39750]
[]
[null,null,null,null,null,"Total Turnover",null,{"$f":"SUM(H9:H17)","v":6132500},"Revised Total Turnover",null,null,null,null,{"$f":"SUM(N9:N17)","v":6699450}]

{"sheet":"No Units Sold","index":2,"n_rows":19,"n_cols":13,"rows_kept":19,"cut":false,"hidden":false,"merged":[[18,8,18,9],[2,1,2,4]]}
[null,null,null,null,null,null,null,null,null,null,null,null,"WHAT IF ANALYSIS"]
[]
[null,{"$f":"Start!E9","v":"Demonstration Limited"}]
[null,"\"What If\" Analysis"]
[null,"No of Units Sold"]
[]
[null,null,"Product /      Service Existing no. of units sold",null,"Average price per unit        £",null,"Existing Turnover             £",null,"Effect of additional units",null,"Revised no.       of units sold",null,"Revised Turnover       £"]
[null,null,null,null,0]
[null,1,{"$f":"'Pricing Policy'!D9","v":100000},null,{"$f":"'Pricing Policy'!L9","v":49.68},null,{"$f":"E9*C9","v":4968000},null,127,null,{"$f":"C9+I9","v":100127},null,{"$f":"K9*E9","v":4974309.3600000003}]
[]
[null,2,{"$f":"'Pricing Policy'!D11","v":5000},null,{"$f":"'Pricing Policy'!L11","v":15.6},null,{"$f":"E11*C11","v":78000},null,73,null,{"$f":"C11+I11","v":5073},null,{"$f":"K11*E11","v":79138.8}]
[]
[null,3,{"$f":"'Pricing Policy'!D13","v":25000},null,{"$f":"'Pricing Policy'!L13","v":57},null,{"$f":"E13*C13","v":1425000},null,0,null,25000,null,1425000]
[]
[null,4,{"$f":"'Pricing Policy'!D15","v":10000},null,{"$f":"'Pricing Policy'!L15","v":18.87},null,{"$f":"E15*C15","v":188700},null,5,null,10005,null,188794.35]
[]
[null,5,{"$f":"'Pricing Policy'!D17","v":3000},null,{"$f":"'Pricing Policy'!L17","v":13.25},null,{"$f":"E17*C17","v":39750},null,4,null,3004,null,39803]
[]
[null,null,null,null,"Total Turnover",null,{"$f":"SUM(G9:G17)","v":6699450},null,"Revised Total Turnover",null,null,null,{"$f":"SUM(M9:M17)","v":6707045.5099999998}]

{"sheet":"list (2)","index":3,"n_rows":579,"n_cols":8,"rows_kept":579,"cut":false,"hidden":true,"merged":[]}
[1,1,null,1,null,{"$f":"D1-B1","v":0},null,"2000-06-01"]
[2,1.5,null,2,null,0.5,null,"2000-06-02"]
[3,2,null,3,null,1,null,"2000-06-03"]
[4,2.5,null,4,null,1.5,null,"2000-06-04"]
[5,3,null,5,null,2,null,"2000-06-05"]
[6,3.5,null,6,null,2.5,null,"2000-06-06"]
[7,4,null,7,null,3,null,"2000-06-07"]
[8,4.5,null,8,null,3.5,null,"2000-06-08"]
[9,5,null,9,null,4,null,"2000-06-09"]
[10,5.5,null,10,null,4.5,null,"2000-06-10"]
[11,6,null,11,null,5,null,"2000-06-11"]
[12,6.5,null,12,null,5.5,null,"2000-06-12"]
[13,7,null,13,null,6,null,"2000-06-13"]
[14,7.5,null,14,null,6.5,null,"2000-06-14"]
[15,8,null,15,null,7,null,"2000-06-15"]
[16,8.5,null,16,null,7.5,null,"2000-06-16"]
[17,9,null,17,null,8,null,"2000-06-17"]
[18,9.5,null,18,null,8.5,null,"2000-06-18"]
[19,10,null,19,null,9,null,"2000-06-19"]
[20,10.5,null,20,null,9.5,null,"2000-06-20"]
[21,11,null,21,null,10,null,"2000-06-21"]
[22,11.5,null,22,null,10.5,null,"2000-06-22"]
[23,12,null,23,null,11,null,"2000-06-23"]
[24,12.5,null,24,null,11.5,null,"2000-06-24"]
[25,13,null,25,null,12,null,"2000-06-25"]
[26,13.5,null,26,null,12.5,null,"2000-06-26"]
[27,14,null,27,null,13,null,"2000-06-27"]
[28,14.5,null,28,null,13.5,null,"2000-06-28"]
[29,15,null,29,null,14,null,"2000-06-29"]
[30,15.5,null,30,null,14.5,null,"2000-06-30"]
[31,16,null,31,null,15,null,"2000-07-01"]
[32,16.5,null,32,null,15.5,null,"2000-07-02"]
[33,17,null,33,null,16,null,"2000-07-03"]
[34,17.5,null,34,null,16.5,null,"2000-07-04"]
[35,18,null,35,null,17,null,"2000-07-05"]
[36,18.5,null,36,null,17.5,null,"2000-07-06"]
[37,19,null,37,null,18,null,"2000-07-07"]
[38,19.5,null,38,null,18.5,null,"2000-07-08"]
[39,20,null,39,null,19,null,"2000-07-09"]
[40,20.5,null,40,null,19.5,null,"2000-07-10"]
[41,21,null,41,null,20,null,"2000-07-11"]
[42,21.5,null,42,null,20.5,null,"2000-07-12"]
[43,22,null,43,null,21,null,"2000-07-13"]
[44,22.5,null,44,null,21.5,null,"2000-07-14"]
[45,23,null,45,null,22,null,"2000-07-15"]
[46,23.5,null,46,null,22.5,null,"2000-07-16"]
[47,24,null,47,null,23,null,"2000-07-17"]
[48,24.5,null,48,null,23.5,null,"2000-07-18"]
[49,25,null,49,null,24,null,"2000-07-19"]
[50,25.5,null,50,null,24.5,null,"2000-07-20"]
[51,26,null,51,null,25,null,"2000-07-21"]
[52,26.5,null,52,null,25.5,null,"2000-07-22"]
[53,27,null,53,null,26,null,"2000-07-23"]
[54,27.5,null,54,null,26.5,null,"2000-07-24"]
[55,28,null,55,null,27,null,"2000-07-25"]
[56,28.5,null,56,null,27.5,null,"2000-07-26"]
[57,29,null,57,null,28,null,"2000-07-27"]
[58,29.5,null,58,null,28.5,null,"2000-07-28"]
[59,30,null,59,null,29,null,"2000-07-29"]
[60,30.5,null,60,null,29.5,null,"2000-07-30"]
[61,31,null,61,null,30,null,"2000-07-31"]
[62,31.5,null,62,null,30.5,null,"2000-08-01"]
[63,32,null,63,null,31,null,"2000-08-02"]
[64,32.5,null,64,null,31.5,null,"2000-08-03"]
[65,33,null,65,null,{"$f":"D65-B65","v":32},null,"2000-08-04"]
[66,33.5,null,66,null,32.5,null,"2000-08-05"]
[67,34,null,67,null,33,null,"2000-08-06"]
[68,34.5,null,68,null,33.5,null,"2000-08-07"]
[69,35,null,69,null,34,null,"2000-08-08"]
[70,35.5,null,70,null,34.5,null,"2000-08-09"]
[71,36,null,71,null,35,null,"2000-08-10"]
[72,36.5,null,72,null,35.5,null,"2000-08-11"]
[73,37,null,73,null,36,null,"2000-08-12"]
[74,37.5,null,74,null,36.5,null,"2000-08-13"]
[75,38,null,75,null,37,null,"2000-08-14"]
[76,38.5,null,76,null,37.5,null,"2000-08-15"]
[77,39,null,77,null,38,null,"2000-08-16"]
[78,39.5,null,78,null,38.5,null,"2000-08-17"]
[79,40,null,79,null,39,null,"2000-08-18"]
[80,40.5,null,80,null,39.5,null,"2000-08-19"]
[81,41,null,81,null,40,null,"2000-08-20"]
[82,41.5,null,82,null,40.5,null,"2000-08-21"]
[83,42,null,83,null,41,null,"2000-08-22"]
[84,42.5,null,84,null,41.5,null,"2000-08-23"]
[85,43,null,85,null,42,null,"2000-08-24"]
[86,43.5,null,86,null,42.5,null,"2000-08-25"]
[87,44,null,87,null,43,null,"2000-08-26"]
[88,44.5,null,88,null,43.5,null,"2000-08-27"]
[89,45,null,89,null,44,null,"2000-08-28"]
[90,45.5,null,90,null,44.5,null,"2000-08-29"]
[91,46,null,91,null,45,null,"2000-08-30"]
[92,46.5,null,92,null,45.5,null,"2000-08-31"]
[93,47,null,93,null,46,null,"2000-09-01"]
[94,47.5,null,94,null,46.5,null,"2000-09-02"]
[95,48,null,95,null,47,null,"2000-09-03"]
[96,48.5,null,96,null,47.5,null,"2000-09-04"]
[97,49,null,97,null,48,null,"2000-09-05"]
[98,49.5,null,98,null,48.5,null,"2000-09-06"]
[99,50,null,99,null,49,null,"2000-09-07"]
[100,50.5,null,100,null,49.5,null,"2000-09-08"]
[101,51,null,101,null,50,null,"2000-09-09"]
[102,51.5,null,102,null,50.5,null,"2000-09-10"]
[103,52,null,103,null,51,null,"2000-09-11"]
[104,52.5,null,104,null,51.5,null,"2000-09-12"]
[105,53,null,105,null,52,null,"2000-09-13"]
[106,53.5,null,106,null,52.5,null,"2000-09-14"]
[107,54,null,107,null,53,null,"2000-09-15"]
[108,54.5,null,108,null,53.5,null,"2000-09-16"]
[109,55,null,109,null,54,null,"2000-09-17"]
[110,55.5,null,110,null,54.5,null,"2000-09-18"]
[111,56,null,111,null,55,null,"2000-09-19"]
[112,56.5,null,112,null,55.5,null,"2000-09-20"]
[113,57,null,113,null,56,null,"2000-09-21"]
[114,57.5,null,114,null,56.5,null,"2000-09-22"]
[115,58,null,115,null,57,null,"2000-09-23"]
[116,58.5,null,116,null,57.5,null,"2000-09-24"]
[117,59,null,117,null,58,null,"2000-09-25"]
[118,59.5,null,118,null,58.5,null,"2000-09-26"]
[119,60,null,119,null,59,null,"2000-09-27"]
[120,60.5,null,120,null,59.5,null,"2000-09-28"]
[121,61,null,121,null,60,null,"2000-09-29"]
[122,61.5,null,122,null,60.5,null,"2000-09-30"]
[123,62,null,123,null,61,null,"2000-10-01"]
[124,62.5,null,124,null,61.5,null,"2000-10-02"]
[125,63,null,125,null,62,null,"2000-10-03"]
[126,63.5,null,126,null,62.5,null,"2000-10-04"]
[127,64,null,127,null,63,null,"2000-10-05"]
[128,64.5,null,128,null,63.5,null,"2000-10-06"]
[129,65,null,129,null,{"$f":"D129-B129","v":64},null,"2000-10-07"]
[130,65.5,null,130,null,64.5,null,"2000-10-08"]
[131,66,null,131,null,65,null,"2000-10-09"]
[132,66.5,null,132,null,65.5,null,"2000-10-10"]
[133,67,null,133,null,66,null,"2000-10-11"]
[134,67.5,null,134,null,66.5,null,"2000-10-12"]
[135,68,null,135,null,67,null,"2000-10-13"]
[136,68.5,null,136,null,67.5,null,"2000-10-14"]
[137,69,null,137,null,68,null,"2000-10-15"]
[138,69.5,null,138,null,68.5,null,"2000-10-16"]
[139,70,null,139,null,69,null,"2000-10-17"]
[140,70.5,null,140,null,69.5,null,"2000-10-18"]
[141,71,null,141,null,70,null,"2000-10-19"]
[142,71.5,null,142,null,70.5,null,"2000-10-20"]
[143,72,null,143,null,71,null,"2000-10-21"]
[144,72.5,null,144,null,71.5,null,"2000-10-22"]
[145,73,null,145,null,72,null,"2000-10-23"]
[146,73.5,null,146,null,72.5,null,"2000-10-24"]
[147,74,null,147,null,73,null,"2000-10-25"]
[148,74.5,null,148,null,73.5,null,"2000-10-26"]
[149,75,null,149,null,74,null,"2000-10-27"]
[150,75.5,null,150,null,74.5,null,"2000-10-28"]
[151,76,null,151,null,75,null,"2000-10-29"]
[152,76.5,null,152,null,75.5,null,"2000-10-30"]
[153,77,null,153,null,76,null,"2000-10-31"]
[154,77.5,null,154,null,76.5,null,"2000-11-01"]
[155,78,null,155,null,77,null,"2000-11-02"]
[156,78.5,null,156,null,77.5,null,"2000-11-03"]
[157,79,null,157,null,78,null,"2000-11-04"]
[158,79.5,null,158,null,78.5,null,"2000-11-05"]
[159,80,null,159,null,79,null,"2000-11-06"]
[160,80.5,null,160,null,79.5,null,"2000-11-07"]
[161,81,null,161,null,80,null,"2000-11-08"]
[162,81.5,null,162,null,80.5,null,"2000-11-09"]
[163,82,null,163,null,81,null,"2000-11-10"]
[164,82.5,null,164,null,81.5,null,"2000-11-11"]
[165,83,null,165,null,82,null,"2000-11-12"]
[166,83.5,null,166,null,82.5,null,"2000-11-13"]
[167,84,null,167,null,83,null,"2000-11-14"]
[168,84.5,null,168,null,83.5,null,"2000-11-15"]
[169,85,null,169,null,84,null,"2000-11-16"]
[170,85.5,null,170,null,84.5,null,"2000-11-17"]
[171,86,null,171,null,85,null,"2000-11-18"]
[172,86.5,null,172,null,85.5,null,"2000-11-19"]
[173,87,null,173,null,86,null,"2000-11-20"]
[174,87.5,null,174,null,86.5,null,"2000-11-21"]
[175,88,null,175,null,87,null,"2000-11-22"]
[176,88.5,null,176,null,87.5,null,"2000-11-23"]
[177,89,null,177,null,88,null,"2000-11-24"]
[178,89.5,null,178,null,88.5,null,"2000-11-25"]
[179,90,null,179,null,89,null,"2000-11-26"]
[180,90.5,null,180,null,89.5,null,"2000-11-27"]
[181,91,null,181,null,90,null,"2000-11-28"]
[182,91.5,null,182,null,90.5,null,"2000-11-29"]
[183,92,null,183,null,91,null,"2000-11-30"]
[184,92.5,null,184,null,91.5,null,"2000-12-01"]
[185,93,null,185,null,92,null,"2000-12-02"]
[186,93.5,null,186,null,92.5,null,"2000-12-03"]
[187,94,null,187,null,93,null,"2000-12-04"]
[188,94.5,null,188,null,93.5,null,"2000-12-05"]
[189,95,null,189,null,94,null,"2000-12-06"]
[190,95.5,null,190,null,94.5,null,"2000-12-07"]
[191,96,null,191,null,95,null,"2000-12-08"]
[192,96.5,null,192,null,95.5,null,"2000-12-09"]
[193,97,null,193,null,{"$f":"D193-B193","v":96},null,"2000-12-10"]
[194,97.5,null,194,null,96.5,null,"2000-12-11"]
[195,98,null,195,null,97,null,"2000-12-12"]
[196,98.5,null,196,null,97.5,null,"2000-12-13"]
[197,99,null,197,null,98,null,"2000-12-14"]
[198,99.5,null,198,null,98.5,null,"2000-12-15"]
[199,100,null,199,null,99,null,"2000-12-16"]
[200,100.5,null,200,null,99.5,null,"2000-12-17"]
[201,101,null,201,null,100,null,"2000-12-18"]
[202,101.5,null,202,null,100.5,null,"2000-12-19"]
[203,102,null,203,null,101,null,"2000-12-20"]
[204,102.5,null,204,null,101.5,null,"2000-12-21"]
[205,103,null,205,null,102,null,"2000-12-22"]
[206,103.5,null,206,null,102.5,null,"2000-12-23"]
[207,104,null,207,null,103,null,"2000-12-24"]
[208,104.5,null,208,null,103.5,null,"2000-12-25"]
[209,105,null,209,null,104,null,"2000-12-26"]
[210,105.5,null,210,null,104.5,null,"2000-12-27"]
[211,106,null,211,null,105,null,"2000-12-28"]
[212,106.5,null,212,null,105.5,null,"2000-12-29"]
[213,107,null,213,null,106,null,"2000-12-30"]
[214,107.5,null,214,null,106.5,null,"2000-12-31"]
[215,108,null,215,null,107,null,"2001-01-01"]
[216,108.5,null,216,null,107.5,null,"2001-01-02"]
[217,109,null,217,null,108,null,"2001-01-03"]
[218,109.5,null,218,null,108.5,null,"2001-01-04"]
[219,110,null,219,null,109,null,"2001-01-05"]
[220,110.5,null,220,null,109.5,null,"2001-01-06"]
[221,111,null,221,null,110,null,"2001-01-07"]
[222,111.5,null,222,null,110.5,null,"2001-01-08"]
[223,112,null,223,null,111,null,"2001-01-09"]
[224,112.5,null,224,null,111.5,null,"2001-01-10"]
[225,113,null,225,null,112,null,"2001-01-11"]
[226,113.5,null,226,null,112.5,null,"2001-01-12"]
[227,114,null,227,null,113,null,"2001-01-13"]
[228,114.5,null,228,null,113.5,null,"2001-01-14"]
[229,115,null,229,null,114,null,"2001-01-15"]
[230,115.5,null,230,null,114.5,null,"2001-01-16"]
[231,116,null,231,null,115,null,"2001-01-17"]
[232,116.5,null,232,null,115.5,null,"2001-01-18"]
[233,117,null,233,null,116,null,"2001-01-19"]
[234,117.5,null,234,null,116.5,null,"2001-01-20"]
[235,118,null,235,null,117,null,"2001-01-21"]
[236,118.5,null,236,null,117.5,null,"2001-01-22"]
[237,119,null,237,null,118,null,"2001-01-23"]
[238,119.5,null,238,null,118.5,null,"2001-01-24"]
[239,120,null,239,null,119,null,"2001-01-25"]
[240,120.5,null,240,null,119.5,null,"2001-01-26"]
[241,121,null,241,null,120,null,"2001-01-27"]
[242,121.5,null,242,null,120.5,null,"2001-01-28"]
[243,122,null,243,null,121,null,"2001-01-29"]
[244,122.5,null,244,null,121.5,null,"2001-01-30"]
[245,123,null,245,null,122,null,"2001-01-31"]
[246,123.5,null,246,null,122.5,null,"2001-02-01"]
[247,124,null,247,null,123,null,"2001-02-02"]
[248,124.5,null,248,null,123.5,null,"2001-02-03"]
[249,125,null,249,null,124,null,"2001-02-04"]
[250,125.5,null,250,null,124.5,null,"2001-02-05"]
[251,126,null,251,null,125,null,"2001-02-06"]
[252,126.5,null,252,null,125.5,null,"2001-02-07"]
[253,127,null,253,null,126,null,"2001-02-08"]
[254,127.5,null,254,null,126.5,null,"2001-02-09"]
[255,128,null,255,null,127,null,"2001-02-10"]
[256,128.5,null,256,null,127.5,null,"2001-02-11"]
[257,129,null,257,null,{"$f":"D257-B257","v":128},null,"2001-02-12"]
[258,129.5,null,258,null,128.5,null,"2001-02-13"]
[259,130,null,259,null,129,null,"2001-02-14"]
[260,130.5,null,260,null,129.5,null,"2001-02-15"]
[261,131,null,261,null,130,null,"2001-02-16"]
[262,131.5,null,262,null,130.5,null,"2001-02-17"]
[263,132,null,263,null,131,null,"2001-02-18"]
[264,132.5,null,264,null,131.5,null,"2001-02-19"]
[265,133,null,265,null,132,null,"2001-02-20"]
[266,133.5,null,266,null,132.5,null,"2001-02-21"]
[267,134,null,267,null,133,null,"2001-02-22"]
[268,134.5,null,268,null,133.5,null,"2001-02-23"]
[269,135,null,269,null,134,null,"2001-02-24"]
[270,135.5,null,270,null,134.5,null,"2001-02-25"]
[271,136,null,271,null,135,null,"2001-02-26"]
[272,136.5,null,272,null,135.5,null,"2001-02-27"]
[273,137,null,273,null,136,null,"2001-02-28"]
[274,137.5,null,274,null,136.5,null,"2001-03-01"]
[275,138,null,275,null,137,null,"2001-03-02"]
[276,138.5,null,276,null,137.5,null,"2001-03-03"]
[277,139,null,277,null,138,null,"2001-03-04"]
[278,139.5,null,278,null,138.5,null,"2001-03-05"]
[279,140,null,279,null,139,null,"2001-03-06"]
[280,140.5,null,280,null,139.5,null,"2001-03-07"]
[281,141,null,281,null,140,null,"2001-03-08"]
[282,141.5,null,282,null,140.5,null,"2001-03-09"]
[283,142,null,283,null,141,null,"2001-03-10"]
[284,142.5,null,284,null,141.5,null,"2001-03-11"]
[285,143,null,285,null,142,null,"2001-03-12"]
[286,143.5,null,286,null,142.5,null,"2001-03-13"]
[287,144,null,287,null,143,null,"2001-03-14"]
[288,144.5,null,288,null,143.5,null,"2001-03-15"]
[289,145,null,289,null,144,null,"2001-03-16"]
[290,145.5,null,290,null,144.5,null,"2001-03-17"]
[291,146,null,291,null,145,null,"2001-03-18"]
[292,146.5,null,292,null,145.5,null,"2001-03-19"]
[293,147,null,293,null,146,null,"2001-03-20"]
[294,147.5,null,294,null,146.5,null,"2001-03-21"]
[295,148,null,295,null,147,null,"2001-03-22"]
[296,148.5,null,296,null,147.5,null,"2001-03-23"]
[297,149,null,297,null,148,null,"2001-03-24"]
[298,149.5,null,298,null,148.5,null,"2001-03-25"]
[299,150,null,299,null,149,null,"2001-03-26"]
[300,150.5,null,300,null,149.5,null,"2001-03-27"]
[301,151,null,301,null,150,null,"2001-03-28"]
[302,151.5,null,302,null,150.5,null,"2001-03-29"]
[303,152,null,303,null,151,null,"2001-03-30"]
[304,152.5,null,304,null,151.5,null,"2001-03-31"]
[305,153,null,305,null,152,null,"2001-04-01"]
[306,153.5,null,306,null,152.5,null,"2001-04-02"]
[307,154,null,307,null,153,null,"2001-04-03"]
[308,154.5,null,308,null,153.5,null,"2001-04-04"]
[309,155,null,309,null,154,null,"2001-04-05"]
[310,155.5,null,310,null,154.5,null,"2001-04-06"]
[311,156,null,311,null,155,null,"2001-04-07"]
[312,156.5,null,312,null,155.5,null,"2001-04-08"]
[313,157,null,313,null,156,null,"2001-04-09"]
[314,157.5,null,314,null,156.5,null,"2001-04-10"]
[315,158,null,315,null,157,null,"2001-04-11"]
[316,158.5,null,316,null,157.5,null,"2001-04-12"]
[317,159,null,317,null,158,null,"2001-04-13"]
[318,159.5,null,318,null,158.5,null,"2001-04-14"]
[319,160,null,319,null,159,null,"2001-04-15"]
[320,160.5,null,320,null,159.5,null,"2001-04-16"]
[321,161,null,321,null,{"$f":"D321-B321","v":160},null,"2001-04-17"]
[322,161.5,null,322,null,160.5,null,"2001-04-18"]
[323,162,null,323,null,161,null,"2001-04-19"]
[324,162.5,null,324,null,161.5,null,"2001-04-20"]
[325,163,null,325,null,162,null,"2001-04-21"]
[326,163.5,null,326,null,162.5,null,"2001-04-22"]
[327,164,null,327,null,163,null,"2001-04-23"]
[328,164.5,null,328,null,163.5,null,"2001-04-24"]
[329,165,null,329,null,164,null,"2001-04-25"]
[330,165.5,null,330,null,164.5,null,"2001-04-26"]
[331,166,null,331,null,165,null,"2001-04-27"]
[332,166.5,null,332,null,165.5,null,"2001-04-28"]
[333,167,null,333,null,166,null,"2001-04-29"]
[334,167.5,null,334,null,166.5,null,"2001-04-30"]
[335,168,null,335,null,167,null,"2001-05-01"]
[336,null,null,null,null,null,null,"2001-05-02"]
[337,null,null,null,null,null,null,"2001-05-03"]
[338,null,null,null,null,null,null,"2001-05-04"]
[339,null,null,null,null,null,null,"2001-05-05"]
[340,null,null,null,null,null,null,"2001-05-06"]
[341,null,null,null,null,null,null,"2001-05-07"]
[342,null,null,null,null,null,null,"2001-05-08"]
[343,null,null,null,null,null,null,"2001-05-09"]
[344,null,null,null,null,null,null,"2001-05-10"]
[345,null,null,null,null,null,null,"2001-05-11"]
[346,null,null,null,null,null,null,"2001-05-12"]
[347,null,null,null,null,null,null,"2001-05-13"]
[348,null,null,null,null,null,null,"2001-05-14"]
[349,null,null,null,null,null,null,"2001-05-15"]
[350,null,null,null,null,null,null,"2001-05-16"]
[351,null,null,null,null,null,null,"2001-05-17"]
[352,null,null,null,null,null,null,"2001-05-18"]
[353,null,null,null,null,null,null,"2001-05-19"]
[354,null,null,null,null,null,null,"2001-05-20"]
[355,null,null,null,null,null,null,"2001-05-21"]
[356,null,null,null,null,null,null,"2001-05-22"]
[357,null,null,null,null,null,null,"2001-05-23"]
[358,null,null,null,null,null,null,"2001-05-24"]
[359,null,null,null,null,null,null,"2001-05-25"]
[360,null,null,null,null,null,null,"2001-05-26"]
[361,null,null,null,null,null,null,"2001-05-27"]
[362,null,null,null,null,null,null,"2001-05-28"]
[363,null,null,null,null,null,null,"2001-05-29"]
[364,null,null,null,null,null,null,"2001-05-30"]
[365,null,null,null,null,null,null,"2001-05-31"]
[366,null,null,null,null,null,null,"2001-06-01"]
[367,null,null,null,null,null,null,"2001-06-02"]
[368,null,null,null,null,null,null,"2001-06-03"]
[369,null,null,null,null,null,null,"2001-06-04"]
[370,null,null,null,null,null,null,"2001-06-05"]
[371,null,null,null,null,null,null,"2001-06-06"]
[372,null,null,null,null,null,null,"2001-06-07"]
[373,null,null,null,null,null,null,"2001-06-08"]
[374,null,null,null,null,null,null,"2001-06-09"]
[375,null,null,null,null,null,null,"2001-06-10"]
[376,null,null,null,null,null,null,"2001-06-11"]
[377,null,null,null,null,null,null,"2001-06-12"]
[378,null,null,null,null,null,null,"2001-06-13"]
[379,null,null,null,null,null,null,"2001-06-14"]
[380,null,null,null,null,null,null,"2001-06-15"]
[381,null,null,null,null,null,null,"2001-06-16"]
[382,null,null,null,null,null,null,"2001-06-17"]
[383,null,null,null,null,null,null,"2001-06-18"]
[384,null,null,null,null,null,null,"2001-06-19"]
[385,null,null,null,null,null,null,"2001-06-20"]
[386,null,null,null,null,null,null,"2001-06-21"]
[387,null,null,null,null,null,null,"2001-06-22"]
[388,null,null,null,null,null,null,"2001-06-23"]
[389,null,null,null,null,null,null,"2001-06-24"]
[390,null,null,null,null,null,null,"2001-06-25"]
[391,null,null,null,null,null,null,"2001-06-26"]
[392,null,null,null,null,null,null,"2001-06-27"]
[393,null,null,null,null,null,null,"2001-06-28"]
[394,null,null,null,null,null,null,"2001-06-29"]
[395,null,null,null,null,null,null,"2001-06-30"]
[396,null,null,null,null,null,null,"2001-07-01"]
[397,null,null,null,null,null,null,"2001-07-02"]
[398,null,null,null,null,null,null,"2001-07-03"]
[399,null,null,null,null,null,null,"2001-07-04"]
[400,null,null,null,null,null,null,"2001-07-05"]
[401,null,null,null,null,null,null,"2001-07-06"]
[402,null,null,null,null,null,null,"2001-07-07"]
[403,null,null,null,null,null,null,"2001-07-08"]
[404,null,null,null,null,null,null,"2001-07-09"]
[405,null,null,null,null,null,null,"2001-07-10"]
[406,null,null,null,null,null,null,"2001-07-11"]
[407,null,null,null,null,null,null,"2001-07-12"]
[408,null,null,null,null,null,null,"2001-07-13"]
[409,null,null,null,null,null,null,"2001-07-14"]
[410,null,null,null,null,null,null,"2001-07-15"]
[411,null,null,null,null,null,null,"2001-07-16"]
[412,null,null,null,null,null,null,"2001-07-17"]
[413,null,null,null,null,null,null,"2001-07-18"]
[414,null,null,null,null,null,null,"2001-07-19"]
[415,null,null,null,null,null,null,"2001-07-20"]
[416,null,null,null,null,null,null,"2001-07-21"]
[417,null,null,null,null,null,null,"2001-07-22"]
[418,null,null,null,null,null,null,"2001-07-23"]
[419,null,null,null,null,null,null,"2001-07-24"]
[420,null,null,null,null,null,null,"2001-07-25"]
[421,null,null,null,null,null,null,"2001-07-26"]
[422,null,null,null,null,null,null,"2001-07-27"]
[423,null,null,null,null,null,null,"2001-07-28"]
[424,null,null,null,null,null,null,"2001-07-29"]
[425,null,null,null,null,null,null,"2001-07-30"]
[426,null,null,null,null,null,null,"2001-07-31"]
[427,null,null,null,null,null,null,"2001-08-01"]
[428,null,null,null,null,null,null,"2001-08-02"]
[429,null,null,null,null,null,null,"2001-08-03"]
[430,null,null,null,null,null,null,"2001-08-04"]
[431,null,null,null,null,null,null,"2001-08-05"]
[432,null,null,null,null,null,null,"2001-08-06"]
[433,null,null,null,null,null,null,"2001-08-07"]
[434,null,null,null,null,null,null,"2001-08-08"]
[435,null,null,null,null,null,null,"2001-08-09"]
[436,null,null,null,null,null,null,"2001-08-10"]
[437,null,null,null,null,null,null,"2001-08-11"]
[438,null,null,null,null,null,null,"2001-08-12"]
[439,null,null,null,null,null,null,"2001-08-13"]
[440,null,null,null,null,null,null,"2001-08-14"]
[441,null,null,null,null,null,null,"2001-08-15"]
[442,null,null,null,null,null,null,"2001-08-16"]
[443,null,null,null,null,null,null,"2001-08-17"]
[444,null,null,null,null,null,null,"2001-08-18"]
[445,null,null,null,null,null,null,"2001-08-19"]
[446,null,null,null,null,null,null,"2001-08-20"]
[447,null,null,null,null,null,null,"2001-08-21"]
[448,null,null,null,null,null,null,"2001-08-22"]
[449,null,null,null,null,null,null,"2001-08-23"]
[450,null,null,null,null,null,null,"2001-08-24"]
[451,null,null,null,null,null,null,"2001-08-25"]
[452,null,null,null,null,null,null,"2001-08-26"]
[453,null,null,null,null,null,null,"2001-08-27"]
[454,null,null,null,null,null,null,"2001-08-28"]
[455,null,null,null,null,null,null,"2001-08-29"]
[456,null,null,null,null,null,null,"2001-08-30"]
[457,null,null,null,null,null,null,"2001-08-31"]
[458,null,null,null,null,null,null,"2001-09-01"]
[459,null,null,null,null,null,null,"2001-09-02"]
[460,null,null,null,null,null,null,"2001-09-03"]
[461,null,null,null,null,null,null,"2001-09-04"]
[462,null,null,null,null,null,null,"2001-09-05"]
[463,null,null,null,null,null,null,"2001-09-06"]
[464,null,null,null,null,null,null,"2001-09-07"]
[465,null,null,null,null,null,null,"2001-09-08"]
[466,null,null,null,null,null,null,"2001-09-09"]
[467,null,null,null,null,null,null,"2001-09-10"]
[468,null,null,null,null,null,null,"2001-09-11"]
[469,null,null,null,null,null,null,"2001-09-12"]
[470,null,null,null,null,null,null,"2001-09-13"]
[471,null,null,null,null,null,null,"2001-09-14"]
[472,null,null,null,null,null,null,"2001-09-15"]
[473,null,null,null,null,null,null,"2001-09-16"]
[474,null,null,null,null,null,null,"2001-09-17"]
[475,null,null,null,null,null,null,"2001-09-18"]
[476,null,null,null,null,null,null,"2001-09-19"]
[477,null,null,null,null,null,null,"2001-09-20"]
[478,null,null,null,null,null,null,"2001-09-21"]
[479,null,null,null,null,null,null,"2001-09-22"]
[480,null,null,null,null,null,null,"2001-09-23"]
[481,null,null,null,null,null,null,"2001-09-24"]
[482,null,null,null,null,null,null,"2001-09-25"]
[483,null,null,null,null,null,null,"2001-09-26"]
[484,null,null,null,null,null,null,"2001-09-27"]
[485,null,null,null,null,null,null,"2001-09-28"]
[486,null,null,null,null,null,null,"2001-09-29"]
[487,null,null,null,null,null,null,"2001-09-30"]
[488,null,null,null,null,null,null,"2001-10-01"]
[489,null,null,null,null,null,null,"2001-10-02"]
[490,null,null,null,null,null,null,"2001-10-03"]
[491,null,null,null,null,null,null,"2001-10-04"]
[492,null,null,null,null,null,null,"2001-10-05"]
[493,null,null,null,null,null,null,"2001-10-06"]
[494,null,null,null,null,null,null,"2001-10-07"]
[495,null,null,null,null,null,null,"2001-10-08"]
[496,null,null,null,null,null,null,"2001-10-09"]
[497,null,null,null,null,null,null,"2001-10-10"]
[498,null,null,null,null,null,null,"2001-10-11"]
[499,null,null,null,null,null,null,"2001-10-12"]
[500,null,null,null,null,null,null,"2001-10-13"]
[501,null,null,null,null,null,null,"2001-10-14"]
[502,null,null,null,null,null,null,"2001-10-15"]
[503,null,null,null,null,null,null,"2001-10-16"]
[504,null,null,null,null,null,null,"2001-10-17"]
[505,null,null,null,null,null,null,"2001-10-18"]
[506,null,null,null,null,null,null,"2001-10-19"]
[507,null,null,null,null,null,null,"2001-10-20"]
[508,null,null,null,null,null,null,"2001-10-21"]
[509,null,null,null,null,null,null,"2001-10-22"]
[510,null,null,null,null,null,null,"2001-10-23"]
[511,null,null,null,null,null,null,"2001-10-24"]
[512,null,null,null,null,null,null,"2001-10-25"]
[513,null,null,null,null,null,null,"2001-10-26"]
[514,null,null,null,null,null,null,"2001-10-27"]
[515,null,null,null,null,null,null,"2001-10-28"]
[516,null,null,null,null,null,null,"2001-10-29"]
[517,null,null,null,null,null,null,"2001-10-30"]
[518,null,null,null,null,null,null,"2001-10-31"]
[519,null,null,null,null,null,null,"2001-11-01"]
[520,null,null,null,null,null,null,"2001-11-02"]
[521,null,null,null,null,null,null,"2001-11-03"]
[522,null,null,null,null,null,null,"2001-11-04"]
[523,null,null,null,null,null,null,"2001-11-05"]
[524,null,null,null,null,null,null,"2001-11-06"]
[525,null,null,null,null,null,null,"2001-11-07"]
[526,null,null,null,null,null,null,"2001-11-08"]
[527,null,null,null,null,null,null,"2001-11-09"]
[528,null,null,null,null,null,null,"2001-11-10"]
[529,null,null,null,null,null,null,"2001-11-11"]
[530,null,null,null,null,null,null,"2001-11-12"]
[531,null,null,null,null,null,null,"2001-11-13"]
[532,null,null,null,null,null,null,"2001-11-14"]
[533,null,null,null,null,null,null,"2001-11-15"]
[534,null,null,null,null,null,null,"2001-11-16"]
[535,null,null,null,null,null,null,"2001-11-17"]
[536,null,null,null,null,null,null,"2001-11-18"]
[537,null,null,null,null,null,null,"2001-11-19"]
[538,null,null,null,null,null,null,"2001-11-20"]
[539,null,null,null,null,null,null,"2001-11-21"]
[540,null,null,null,null,null,null,"2001-11-22"]
[541,null,null,null,null,null,null,"2001-11-23"]
[542,null,null,null,null,null,null,"2001-11-24"]
[543,null,null,null,null,null,null,"2001-11-25"]
[544,null,null,null,null,null,null,"2001-11-26"]
[545,null,null,null,null,null,null,"2001-11-27"]
[546,null,null,null,null,null,null,"2001-11-28"]
[547,null,null,null,null,null,null,"2001-11-29"]
[548,null,null,null,null,null,null,"2001-11-30"]
[549,null,null,null,null,null,null,"2001-12-01"]
[550,null,null,null,null,null,null,"2001-12-02"]
[551,null,null,null,null,null,null,"2001-12-03"]
[552,null,null,null,null,null,null,"2001-12-04"]
[553,null,null,null,null,null,null,"2001-12-05"]
[554,null,null,null,null,null,null,"2001-12-06"]
[555,null,null,null,null,null,null,"2001-12-07"]
[556,null,null,null,null,null,null,"2001-12-08"]
[557,null,null,null,null,null,null,"2001-12-09"]
[558,null,null,null,null,null,null,"2001-12-10"]
[559,null,null,null,null,null,null,"2001-12-11"]
[560,null,null,null,null,null,null,"2001-12-12"]
[561,null,null,null,null,null,null,"2001-12-13"]
[562,null,null,null,null,null,null,"2001-12-14"]
[563,null,null,null,null,null,null,"2001-12-15"]
[564,null,null,null,null,null,null,"2001-12-16"]
[565,null,null,null,null,null,null,"2001-12-17"]
[566,null,null,null,null,null,null,"2001-12-18"]
[567,null,null,null,null,null,null,"2001-12-19"]
[568,null,null,null,null,null,null,"2001-12-20"]
[569,null,null,null,null,null,null,"2001-12-21"]
[570,null,null,null,null,null,null,"2001-12-22"]
[571,null,null,null,null,null,null,"2001-12-23"]
[572,null,null,null,null,null,null,"2001-12-24"]
[573,null,null,null,null,null,null,"2001-12-25"]
[574,null,null,null,null,null,null,"2001-12-26"]
[575,null,null,null,null,null,null,"2001-12-27"]
[576,null,null,null,null,null,null,"2001-12-28"]
[577,null,null,null,null,null,null,"2001-12-29"]
[578,null,null,null,null,null,null,"2001-12-30"]
[579,null,null,null,null,null,null,"2001-12-31"]

{"sheet":"list","index":4,"n_rows":3001,"n_cols":10,"rows_kept":3001,"cut":false,"hidden":true,"merged":[]}
[0,null,0,null,0,null,1]
[1,null,1,null,1,null,2,1]
[2,null,2,null,1.5,null,3,2]
[3,null,3,null,2,null,4,3,null,"Service Sector"]
[4,null,4,null,2.5,null,5,4,null,"Retailer"]
[5,null,5,null,3,null,6,5]
[6,null,6,null,3.5,null,7,6]
[7,null,7,null,4,null,8,7]
[8,null,8,null,4.5,null,9,8]
[9,null,9,null,5,null,10,9]
[10,null,10,null,5.5,null,11,10]
[11,null,11,null,6,null,12,11]
[12,null,12,null,6.5,null,13,12]
[13,null,13,null,7,null,14,13]
[14,null,14,null,7.5,null,15,14]
[15,null,15,null,8,null,16,15]
[16,null,16,null,8.5,null,17,16]
[17,null,17,null,9,null,18,17]
[18,null,18,null,9.5,null,19,18]
[19,null,19,null,10,null,20,19]
[20,null,20,null,10.5,null,21,20]
[21,null,21,null,11,null,22,21]
[22,null,22,null,11.5,null,23,22]
[23,null,23,null,12,null,24,23]
[24,null,24,null,12.5,null,25,24]
[25,null,25,null,13,null,26,25]
[26,null,26,null,13.5,null,27,26]
[27,null,27,null,14,null,28,27]
[28,null,28,null,14.5,null,29,28]
[29,null,29,null,15,null,30,29]
[30,null,30,null,15.5,null,31,30]
[31,null,31,null,16,null,32,31]
[32,null,32,null,16.5,null,33,32]
[33,null,33,null,17,null,34,33]
[34,null,34,null,17.5,null,35,34]
[35,null,35,null,18,null,36,35]
[36,null,36,null,18.5,null,37,36]
[37,null,37,null,19,null,38,37]
[38,null,38,null,19.5,null,39,38]
[39,null,39,null,20,null,40,39]
[40,null,40,null,20.5,null,41,40]
[41,null,41,null,21,null,42,41]
[42,null,42,null,21.5,null,43,42]
[43,null,43,null,22,null,44,43]
[44,null,44,null,22.5,null,45,44]
[45,null,45,null,23,null,46,45]
[46,null,46,null,23.5,null,47,46]
[47,null,47,null,24,null,48,47]
[48,null,48,null,24.5,null,49,48]
[49,null,49,null,25,null,50,49]
[50,null,50,null,25.5,null,51,50]
[51,null,51,null,26,null,52,51]
[52,null,52,null,26.5,null,53,52]
[53,null,null,null,27,null,54,53]
[54,null,null,null,27.5,null,55,54]
[55,null,null,null,28,null,56,55]
[56,null,null,null,28.5,null,57,56]
[57,null,null,null,29,null,58,57]
[58,null,null,null,29.5,null,59,58]
[59,null,null,null,30,null,60,59]
[60,null,null,null,30.5,null,61,60]
[61,null,null,null,31,null,62,61]
[62,null,null,null,31.5,null,63,62]
[63,null,null,null,32,null,64,63]
[64,null,null,null,32.5,null,65,64]
[65,null,null,null,33,null,66,65]
[66,null,null,null,33.5,null,67,66]
[67,null,null,null,34,null,68,67]
[68,null,null,null,34.5,null,69,68]
[69,null,null,null,35,null,70,69]
[70,null,null,null,35.5,null,71,70]
[71,null,null,null,36,null,72,71]
[72,null,null,null,36.5,null,73,72]
[73,null,null,null,37,null,74,73]
[74,null,null,null,37.5,null,75,74]
[75,null,null,null,38,null,76,75]
[76,null,null,null,38.5,null,77,76]
[77,null,null,null,39,null,78,77]
[78,null,null,null,39.5,null,79,78]
[79,null,null,null,40,null,80,79]
[80,null,null,null,40.5,null,81,80]
[81,null,null,null,41,null,82,81]
[82,null,null,null,41.5,null,83,82]
[83,null,null,null,42,null,84,83]
[84,null,null,null,42.5,null,85,84]
[85,null,null,null,43,null,86,85]
[86,null,null,null,43.5,null,87,86]
[87,null,null,null,44,null,88,87]
[88,null,null,null,44.5,null,89,88]
[89,null,null,null,45,null,90,89]
[90,null,null,null,45.5,null,91,90]
[91,null,null,null,46,null,92,91]
[92,null,null,null,46.5,null,93,92]
[93,null,null,null,47,null,94,93]
[94,null,null,null,47.5,null,95,94]
[95,null,null,null,48,null,96,95]
[96,null,null,null,48.5,null,97,96]
[97,null,null,null,49,null,98,97]
[98,null,null,null,49.5,null,null,98]
[99,null,null,null,50,null,null,99]
[100,null,null,null,50.5,null,null,100]
[101,null,null,null,51,null,null,101]
[102,null,null,null,51.5,null,null,102]
[103,null,null,null,52,null,null,103]
[104,null,null,null,52.5,null,null,104]
[105,null,null,null,53,null,null,105]
[106,null,null,null,53.5,null,null,106]
[107,null,null,null,54,null,null,107]
[108,null,null,null,54.5,null,null,108]
[109,null,null,null,55,null,null,109]
[110,null,null,null,55.5,null,null,110]
[111,null,null,null,56,null,null,111]
[112,null,null,null,56.5,null,null,112]
[113,null,null,null,57,null,null,113]
[114,null,null,null,57.5,null,null,114]
[115,null,null,null,58,null,null,115]
[116,null,null,null,58.5,null,null,116]
[117,null,null,null,59,null,null,117]
[118,null,null,null,59.5,null,null,118]
[119,null,null,null,60,null,null,119]
[120,null,null,null,60.5,null,null,120]
[121,null,null,null,61,null,null,121]
[122,null,null,null,61.5,null,null,122]
[123,null,null,null,62,null,null,123]
[124,null,null,null,62.5,null,null,124]
[125,null,null,null,63,null,null,125]
[126,null,null,null,63.5,null,null,126]
[127,null,null,null,64,null,null,127]
[128,null,null,null,64.5,null,null,128]
[129,null,null,null,65,null,null,129]
[130,null,null,null,65.5,null,null,130]
[131,null,null,null,66,null,null,131]
[132,null,null,null,66.5,null,null,132]
[133,null,null,null,67,null,null,133]
[134,null,null,null,67.5,null,null,134]
[135,null,null,null,68,null,null,135]
[136,null,null,null,68.5,null,null,136]
[137,null,null,null,69,null,null,137]
[138,null,null,null,69.5,null,null,138]
[139,null,null,null,70,null,null,139]
[140,null,null,null,70.5,null,null,140]
[141,null,null,null,71,null,null,141]
[142,null,null,null,71.5,null,null,142]
[143,null,null,null,72,null,null,143]
[144,null,null,null,72.5,null,null,144]
[145,null,null,null,73,null,null,145]
[146,null,null,null,73.5,null,null,146]
[147,null,null,null,74,null,null,147]
[148,null,null,null,74.5,null,null,148]
[149,null,null,null,75,null,null,149]
[150,null,null,null,75.5,null,null,150]
[151,null,null,null,76,null,null,151]
[152,null,null,null,76.5,null,null,152]
[153,null,null,null,77,null,null,153]
[154,null,null,null,77.5,null,null,154]
[155,null,null,null,78,null,null,155]
[156,null,null,null,78.5,null,null,156]
[157,null,null,null,79,null,null,157]
[158,null,null,null,79.5,null,null,158]
[159,null,null,null,80,null,null,159]
[160,null,null,null,80.5,null,null,160]
[161,null,null,null,81,null,null,161]
[162,null,null,null,81.5,null,null,162]
[163,null,null,null,82,null,null,163]
[164,null,null,null,82.5,null,null,164]
[165,null,null,null,83,null,null,165]
[166,null,null,null,83.5,null,null,166]
[167,null,null,null,84,null,null,167]
[168,null,null,null,84.5,null,null,168]
[169,null,null,null,85,null,null,169]
[170,null,null,null,85.5,null,null,170]
[171,null,null,null,86,null,null,171]
[172,null,null,null,86.5,null,null,172]
[173,null,null,null,87,null,null,173]
[174,null,null,null,87.5,null,null,174]
[175,null,null,null,88,null,null,175]
[176,null,null,null,88.5,null,null,176]
[177,null,null,null,89,null,null,177]
[178,null,null,null,89.5,null,null,178]
[179,null,null,null,90,null,null,179]
[180,null,null,null,90.5,null,null,180]
[181,null,null,null,91,null,null,181]
[182,null,null,null,91.5,null,null,182]
[183,null,null,null,92,null,null,183]
[184,null,null,null,92.5,null,null,184]
[185,null,null,null,93,null,null,185]
[186,null,null,null,93.5,null,null,186]
[187,null,null,null,94,null,null,187]
[188,null,null,null,94.5,null,null,188]
[189,null,null,null,95,null,null,189]
[190,null,null,null,95.5,null,null,190]
[191,null,null,null,96,null,null,191]
[192,null,null,null,96.5,null,null,192]
[193,null,null,null,97,null,null,193]
[194,null,null,null,97.5,null,null,194]
[195,null,null,null,98,null,null,195]
[196,null,null,null,98.5,null,null,196]
[197,null,null,null,99,null,null,197]
[198,null,null,null,99.5,null,null,198]
[199,null,null,null,100,null,null,199]
[200,null,null,null,100.5,null,null,200]
[201,null,null,null,101,null,null,201]
[202,null,null,null,101.5,null,null,202]
[203,null,null,null,102,null,null,203]
[204,null,null,null,102.5,null,null,204]
[205,null,null,null,103,null,null,205]
[206,null,null,null,103.5,null,null,206]
[207,null,null,null,104,null,null,207]
[208,null,null,null,104.5,null,null,208]
[209,null,null,null,105,null,null,209]
[210,null,null,null,105.5,null,null,210]
[211,null,null,null,106,null,null,211]
[212,null,null,null,106.5,null,null,212]
[213,null,null,null,107,null,null,213]
[214,null,null,null,107.5,null,null,214]
[215,null,null,null,108,null,null,215]
[216,null,null,null,108.5,null,null,216]
[217,null,null,null,109,null,null,217]
[218,null,null,null,109.5,null,null,218]
[219,null,null,null,110,null,null,219]
[220,null,null,null,110.5,null,null,220]
[221,null,null,null,111,null,null,221]
[222,null,null,null,111.5,null,null,222]
[223,null,null,null,112,null,null,223]
[224,null,null,null,112.5,null,null,224]
[225,null,null,null,113,null,null,225]
[226,null,null,null,113.5,null,null,226]
[227,null,null,null,114,null,null,227]
[228,null,null,null,114.5,null,null,228]
[229,null,null,null,115,null,null,229]
[230,null,null,null,115.5,null,null,230]
[231,null,null,null,116,null,null,231]
[232,null,null,null,116.5,null,null,232]
[233,null,null,null,117,null,null,233]
[234,null,null,null,117.5,null,null,234]
[235,null,null,null,118,null,null,235]
[236,null,null,null,118.5,null,null,236]
[237,null,null,null,119,null,null,237]
[238,null,null,null,119.5,null,null,238]
[239,null,null,null,120,null,null,239]
[240,null,null,null,120.5,null,null,240]
[241,null,null,null,121,null,null,241]
[242,null,null,null,121.5,null,null,242]
[243,null,null,null,122,null,null,243]
[244,null,null,null,122.5,null,null,244]
[245,null,null,null,123,null,null,245]
[246,null,null,null,123.5,null,null,246]
[247,null,null,null,124,null,null,247]
[248,null,null,null,124.5,null,null,248]
[249,null,null,null,125,null,null,249]
[250,null,null,null,125.5,null,null,250]
[251,null,null,null,126,null,null,251]
[252,null,null,null,126.5,null,null,252]
[253,null,null,null,127,null,null,253]
[254,null,null,null,127.5,null,null,254]
[255,null,null,null,128,null,null,255]
[256,null,null,null,128.5,null,null,256]
[257,null,null,null,129,null,null,257]
[258,null,null,null,129.5,null,null,258]
[259,null,null,null,130,null,null,259]
[260,null,null,null,130.5,null,null,260]
[261,null,null,null,131,null,null,261]
[262,null,null,null,131.5,null,null,262]
[263,null,null,null,132,null,null,263]
[264,null,null,null,132.5,null,null,264]
[265,null,null,null,133,null,null,265]
[266,null,null,null,133.5,null,null,266]
[267,null,null,null,134,null,null,267]
[268,null,null,null,134.5,null,null,268]
[269,null,null,null,135,null,null,269]
[270,null,null,null,135.5,null,null,270]
[271,null,null,null,136,null,null,271]
[272,null,null,null,136.5,null,null,272]
[273,null,null,null,137,null,null,273]
[274,null,null,null,137.5,null,null,274]
[275,null,null,null,138,null,null,275]
[276,null,null,null,138.5,null,null,276]
[277,null,null,null,139,null,null,277]
[278,null,null,null,139.5,null,null,278]
[279,null,null,null,140,null,null,279]
[280,null,null,null,140.5,null,null,280]
[281,null,null,null,141,null,null,281]
[282,null,null,null,141.5,null,null,282]
[283,null,null,null,142,null,null,283]
[284,null,null,null,142.5,null,null,284]
[285,null,null,null,143,null,null,285]
[286,null,null,null,143.5,null,null,286]
[287,null,null,null,144,null,null,287]
[288,null,null,null,144.5,null,null,288]
[289,null,null,null,145,null,null,289]
[290,null,null,null,145.5,null,null,290]
[291,null,null,null,146,null,null,291]
[292,null,null,null,146.5,null,null,292]
[293,null,null,null,147,null,null,293]
[294,null,null,null,147.5,null,null,294]
[295,null,null,null,148,null,null,295]
[296,null,null,null,148.5,null,null,296]
[297,null,null,null,149,null,null,297]
[298,null,null,null,149.5,null,null,298]
[299,null,null,null,150,null,null,299]
[300,null,null,null,150.5,null,null,300]
[null,null,null,null,151,null,null,301]
[null,null,null,null,151.5,null,null,302]
[null,null,null,null,152,null,null,303]
[null,null,null,null,152.5,null,null,304]
[null,null,null,null,153,null,null,305]
[null,null,null,null,153.5,null,null,306]
[null,null,null,null,154,null,null,307]
[null,null,null,null,154.5,null,null,308]
[null,null,null,null,155,null,null,309]
[null,null,null,null,155.5,null,null,310]
[null,null,null,null,156,null,null,311]
[null,null,null,null,156.5,null,null,312]
[null,null,null,null,157,null,null,313]
[null,null,null,null,157.5,null,null,314]
[null,null,null,null,158,null,null,315]
[null,null,null,null,158.5,null,null,316]
[null,null,null,null,159,null,null,317]
[null,null,null,null,159.5,null,null,318]
[null,null,null,null,160,null,null,319]
[null,null,null,null,160.5,null,null,320]
[null,null,null,null,161,null,null,321]
[null,null,null,null,161.5,null,null,322]
[null,null,null,null,162,null,null,323]
[null,null,null,null,162.5,null,null,324]
[null,null,null,null,163,null,null,325]
[null,null,null,null,163.5,null,null,326]
[null,null,null,null,164,null,null,327]
[null,null,null,null,164.5,null,null,328]
[null,null,null,null,165,null,null,329]
[null,null,null,null,165.5,null,null,330]
[null,null,null,null,166,null,null,331]
[null,null,null,null,166.5,null,null,332]
[null,null,null,null,167,null,null,333]
[null,null,null,null,167.5,null,null,334]
[null,null,null,null,168,null,null,335]
[null,null,null,null,168.5,null,null,336]
[null,null,null,null,337,null,null,337]
[null,null,null,null,338,null,null,338]
[null,null,null,null,339,null,null,339]
[null,null,null,null,340,null,null,340]
[null,null,null,null,341,null,null,341]
[null,null,null,null,342,null,null,342]
[null,null,null,null,343,null,null,343]
[null,null,null,null,344,null,null,344]
[null,null,null,null,345,null,null,345]
[null,null,null,null,346,null,null,346]
[null,null,null,null,347,null,null,347]
[null,null,null,null,348,null,null,348]
[null,null,null,null,349,null,null,349]
[null,null,null,null,350,null,null,350]
[null,null,null,null,351,null,null,351]
[null,null,null,null,352,null,null,352]
[null,null,null,null,353,null,null,353]
[null,null,null,null,354,null,null,354]
[null,null,null,null,355,null,null,355]
[null,null,null,null,356,null,null,356]
[null,null,null,null,357,null,null,357]
[null,null,null,null,358,null,null,358]
[null,null,null,null,359,null,null,359]
[null,null,null,null,360,null,null,360]
[null,null,null,null,361,null,null,361]
[null,null,null,null,362,null,null,362]
[null,null,null,null,363,null,null,363]
[null,null,null,null,364,null,null,364]
[null,null,null,null,365,null,null,365]
[null,null,null,null,366,null,null,366]
[null,null,null,null,367,null,null,367]
[null,null,null,null,368,null,null,368]
[null,null,null,null,369,null,null,369]
[null,null,null,null,370,null,null,370]
[null,null,null,null,371,null,null,371]
[null,null,null,null,372,null,null,372]
[null,null,null,null,373,null,null,373]
[null,null,null,null,374,null,null,374]
[null,null,null,null,375,null,null,375]
[null,null,null,null,376,null,null,376]
[null,null,null,null,377,null,null,377]
[null,null,null,null,378,null,null,378]
[null,null,null,null,379,null,null,379]
[null,null,null,null,380,null,null,380]
[null,null,null,null,381,null,null,381]
[null,null,null,null,382,null,null,382]
[null,null,null,null,383,null,null,383]
[null,null,null,null,384,null,null,384]
[null,null,null,null,385,null,null,385]
[null,null,null,null,386,null,null,386]
[null,null,null,null,387,null,null,387]
[null,null,null,null,388,null,null,388]
[null,null,null,null,389,null,null,389]
[null,null,null,null,390,null,null,390]
[null,null,null,null,391,null,null,391]
[null,null,null,null,392,null,null,392]
[null,null,null,null,393,null,null,393]
[null,null,null,null,394,null,null,394]
[null,null,null,null,395,null,null,395]
[null,null,null,null,396,null,null,396]
[null,null,null,null,397,null,null,397]
[null,null,null,null,398,null,null,398]
[null,null,null,null,399,null,null,399]
[null,null,null,null,400,null,null,400]
[null,null,null,null,401,null,null,401]
[null,null,null,null,402,null,null,402]
[null,null,null,null,403,null,null,403]
[null,null,null,null,404,null,null,404]
[null,null,null,null,405,null,null,405]
[null,null,null,null,406,null,null,406]
[null,null,null,null,407,null,null,407]
[null,null,null,null,408,null,null,408]
[null,null,null,null,409,null,null,409]
[null,null,null,null,410,null,null,410]
[null,null,null,null,411,null,null,411]
[null,null,null,null,412,null,null,412]
[null,null,null,null,413,null,null,413]
[null,null,null,null,414,null,null,414]
[null,null,null,null,415,null,null,415]
[null,null,null,null,416,null,null,416]
[null,null,null,null,417,null,null,417]
[null,null,null,null,418,null,null,418]
[null,null,null,null,419,null,null,419]
[null,null,null,null,420,null,null,420]
[null,null,null,null,421,null,null,421]
[null,null,null,null,422,null,null,422]
[null,null,null,null,423,null,null,423]
[null,null,null,null,424,null,null,424]
[null,null,null,null,425,null,null,425]
[null,null,null,null,426,null,null,426]
[null,null,null,null,427,null,null,427]
[null,null,null,null,428,null,null,428]
[null,null,null,null,429,null,null,429]
[null,null,null,null,430,null,null,430]
[null,null,null,null,431,null,null,431]
[null,null,null,null,432,null,null,432]
[null,null,null,null,433,null,null,433]
[null,null,null,null,434,null,null,434]
[null,null,null,null,435,null,null,435]
[null,null,null,null,436,null,null,436]
[null,null,null,null,437,null,null,437]
[null,null,null,null,438,null,null,438]
[null,null,null,null,439,null,null,439]
[null,null,null,null,440,null,null,440]
[null,null,null,null,441,null,null,441]
[null,null,null,null,442,null,null,442]
[null,null,null,null,443,null,null,443]
[null,null,null,null,444,null,null,444]
[null,null,null,null,445,null,null,445]
[null,null,null,null,446,null,null,446]
[null,null,null,null,447,null,null,447]
[null,null,null,null,448,null,null,448]
[null,null,null,null,449,null,null,449]
[null,null,null,null,450,null,null,450]
[null,null,null,null,451,null,null,451]
[null,null,null,null,452,null,null,452]
[null,null,null,null,453,null,null,453]
[null,null,null,null,454,null,null,454]
[null,null,null,null,455,null,null,455]
[null,null,null,null,456,null,null,456]
[null,null,null,null,457,null,null,457]
[null,null,null,null,458,null,null,458]
[null,null,null,null,459,null,null,459]
[null,null,null,null,460,null,null,460]
[null,null,null,null,461,null,null,461]
[null,null,null,null,462,null,null,462]
[null,null,null,null,463,null,null,463]
[null,null,null,null,464,null,null,464]
[null,null,null,null,465,null,null,465]
[null,null,null,null,466,null,null,466]
[null,null,null,null,467,null,null,467]
[null,null,null,null,468,null,null,468]
[null,null,null,null,469,null,null,469]
[null,null,null,null,470,null,null,470]
[null,null,null,null,471,null,null,471]
[null,null,null,null,472,null,null,472]
[null,null,null,null,473,null,null,473]
[null,null,null,null,474,null,null,474]
[null,null,null,null,475,null,null,475]
[null,null,null,null,476,null,null,476]
[null,null,null,null,477,null,null,477]
[null,null,null,null,478,null,null,478]
[null,null,null,null,479,null,null,479]
[null,null,null,null,480,null,null,480]
[null,null,null,null,481,null,null,481]
[null,null,null,null,482,null,null,482]
[null,null,null,null,483,null,null,483]
[null,null,null,null,484,null,null,484]
[null,null,null,null,485,null,null,485]
[null,null,null,null,486,null,null,486]
[null,null,null,null,487,null,null,487]
[null,null,null,null,488,null,null,488]
[null,null,null,null,489,null,null,489]
[null,null,null,null,490,null,null,490]
[null,null,null,null,491,null,null,491]
[null,null,null,null,492,null,null,492]
[null,null,null,null,493,null,null,493]
[null,null,null,null,494,null,null,494]
[null,null,null,null,495,null,null,495]
[null,null,null,null,496,null,null,496]
[null,null,null,null,497,null,null,497]
[null,null,null,null,498,null,null,498]
[null,null,null,null,499,null,null,499]
[null,null,null,null,500,null,null,500]
[null,null,null,null,501,null,null,501]
[null,null,null,null,502,null,null,502]
[null,null,null,null,503,null,null,503]
[null,null,null,null,504,null,null,504]
[null,null,null,null,505,null,null,505]
[null,null,null,null,506,null,null,506]
[null,null,null,null,507,null,null,507]
[null,null,null,null,508,null,null,508]
[null,null,null,null,509,null,null,509]
[null,null,null,null,510,null,null,510]
[null,null,null,null,511,null,null,511]
[null,null,null,null,512,null,null,512]
[null,null,null,null,513,null,null,513]
[null,null,null,null,514,null,null,514]
[null,null,null,null,515,null,null,515]
[null,null,null,null,516,null,null,516]
[null,null,null,null,517,null,null,517]
[null,null,null,null,518,null,null,518]
[null,null,null,null,519,null,null,519]
[null,null,null,null,520,null,null,520]
[null,null,null,null,521,null,null,521]
[null,null,null,null,522,null,null,522]
[null,null,null,null,523,null,null,523]
[null,null,null,null,524,null,null,524]
[null,null,null,null,525,null,null,525]
[null,null,null,null,526,null,null,526]
[null,null,null,null,527,null,null,527]
[null,null,null,null,528,null,null,528]
[null,null,null,null,529,null,null,529]
[null,null,null,null,530,null,null,530]
[null,null,null,null,531,null,null,531]
[null,null,null,null,532,null,null,532]
[null,null,null,null,533,null,null,533]
[null,null,null,null,534,null,null,534]
[null,null,null,null,535,null,null,535]
[null,null,null,null,536,null,null,536]
[null,null,null,null,537,null,null,537]
[null,null,null,null,538,null,null,538]
[null,null,null,null,539,null,null,539]
[null,null,null,null,540,null,null,540]
[null,null,null,null,541,null,null,541]
[null,null,null,null,542,null,null,542]
[null,null,null,null,543,null,null,543]
[null,null,null,null,544,null,null,544]
[null,null,null,null,545,null,null,545]
[null,null,null,null,546,null,null,546]
[null,null,null,null,547,null,null,547]
[null,null,null,null,548,null,null,548]
[null,null,null,null,549,null,null,549]
[null,null,null,null,550,null,null,550]
[null,null,null,null,551,null,null,551]
[null,null,null,null,552,null,null,552]
[null,null,null,null,553,null,null,553]
[null,null,null,null,554,null,null,554]
[null,null,null,null,555,null,null,555]
[null,null,null,null,556,null,null,556]
[null,null,null,null,557,null,null,557]
[null,null,null,null,558,null,null,558]
[null,null,null,null,559,null,null,559]
[null,null,null,null,560,null,null,560]
[null,null,null,null,561,null,null,561]
[null,null,null,null,562,null,null,562]
[null,null,null,null,563,null,null,563]
[null,null,null,null,564,null,null,564]
[null,null,null,null,565,null,null,565]
[null,null,null,null,566,null,null,566]
[null,null,null,null,567,null,null,567]
[null,null,null,null,568,null,null,568]
[null,null,null,null,569,null,null,569]
[null,null,null,null,570,null,null,570]
[null,null,null,null,571,null,null,571]
[null,null,null,null,572,null,null,572]
[null,null,null,null,573,null,null,573]
[null,null,null,null,574,null,null,574]
[null,null,null,null,575,null,null,575]
[null,null,null,null,576,null,null,576]
[null,null,null,null,577,null,null,577]
[null,null,null,null,578,null,null,578]
[null,null,null,null,579,null,null,579]
[null,null,null,null,580,null,null,580]
[null,null,null,null,581,null,null,581]
[null,null,null,null,582,null,null,582]
[null,null,null,null,583,null,null,583]
[null,null,null,null,584,null,null,584]
[null,null,null,null,585,null,null,585]
[null,null,null,null,586,null,null,586]
[null,null,null,null,587,null,null,587]
[null,null,null,null,588,null,null,588]
[null,null,null,null,589,null,null,589]
[null,null,null,null,590,null,null,590]
[null,null,null,null,591,null,null,591]
[null,null,null,null,592,null,null,592]
[null,null,null,null,593,null,null,593]
[null,null,null,null,594,null,null,594]
[null,null,null,null,595,null,null,595]
[null,null,null,null,596,null,null,596]
[null,null,null,null,597,null,null,597]
[null,null,null,null,598,null,null,598]
[null,null,null,null,599,null,null,599]
[null,null,null,null,600,null,null,600]
[null,null,null,null,601,null,null,601]
[null,null,null,null,602,null,null,602]
[null,null,null,null,603,null,null,603]
[null,null,null,null,604,null,null,604]
[null,null,null,null,605,null,null,605]
[null,null,null,null,606,null,null,606]
[null,null,null,null,607,null,null,607]
[null,null,null,null,608,null,null,608]
[null,null,null,null,609,null,null,609]
[null,null,null,null,610,null,null,610]
[null,null,null,null,611,null,null,611]
[null,null,null,null,612,null,null,612]
[null,null,null,null,613,null,null,613]
[null,null,null,null,614,null,null,614]
[null,null,null,null,615,null,null,615]
[null,null,null,null,616,null,null,616]
[null,null,null,null,617,null,null,617]
[null,null,null,null,618,null,null,618]
[null,null,null,null,619,null,null,619]
[null,null,null,null,620,null,null,620]
[null,null,null,null,621,null,null,621]
[null,null,null,null,622,null,null,622]
[null,null,null,null,623,null,null,623]
[null,null,null,null,624,null,null,624]
[null,null,null,null,625,null,null,625]
[null,null,null,null,626,null,null,626]
[null,null,null,null,627,null,null,627]
[null,null,null,null,628,null,null,628]
[null,null,null,null,629,null,null,629]
[null,null,null,null,630,null,null,630]
[null,null,null,null,631,null,null,631]
[null,null,null,null,632,null,null,632]
[null,null,null,null,633,null,null,633]
[null,null,null,null,634,null,null,634]
[null,null,null,null,635,null,null,635]
[null,null,null,null,636,null,null,636]
[null,null,null,null,637,null,null,637]
[null,null,null,null,638,null,null,638]
[null,null,null,null,639,null,null,639]
[null,null,null,null,640,null,null,640]
[null,null,null,null,641,null,null,641]
[null,null,null,null,642,null,null,642]
[null,null,null,null,643,null,null,643]
[null,null,null,null,644,null,null,644]
[null,null,null,null,645,null,null,645]
[null,null,null,null,646,null,null,646]
[null,null,null,null,647,null,null,647]
[null,null,null,null,648,null,null,648]
[null,null,null,null,649,null,null,649]
[null,null,null,null,650,null,null,650]
[null,null,null,null,651,null,null,651]
[null,null,null,null,652,null,null,652]
[null,null,null,null,653,null,null,653]
[null,null,null,null,654,null,null,654]
[null,null,null,null,655,null,null,655]
[null,null,null,null,656,null,null,656]
[null,null,null,null,657,null,null,657]
[null,null,null,null,658,null,null,658]
[null,null,null,null,659,null,null,659]
[null,null,null,null,660,null,null,660]
[null,null,null,null,661,null,null,661]
[null,null,null,null,662,null,null,662]
[null,null,null,null,663,null,null,663]
[null,null,null,null,664,null,null,664]
[null,null,null,null,665,null,null,665]
[null,null,null,null,666,null,null,666]
[null,null,null,null,667,null,null,667]
[null,null,null,null,668,null,null,668]
[null,null,null,null,669,null,null,669]
[null,null,null,null,670,null,null,670]
[null,null,null,null,671,null,null,671]
[null,null,null,null,672,null,null,672]
[null,null,null,null,673,null,null,673]
[null,null,null,null,674,null,null,674]
[null,null,null,null,675,null,null,675]
[null,null,null,null,676,null,null,676]
[null,null,null,null,677,null,null,677]
[null,null,null,null,678,null,null,678]
[null,null,null,null,679,null,null,679]
[null,null,null,null,680,null,null,680]
[null,null,null,null,681,null,null,681]
[null,null,null,null,682,null,null,682]
[null,null,null,null,683,null,null,683]
[null,null,null,null,684,null,null,684]
[null,null,null,null,685,null,null,685]
[null,null,null,null,686,null,null,686]
[null,null,null,null,687,null,null,687]
[null,null,null,null,688,null,null,688]
[null,null,null,null,689,null,null,689]
[null,null,null,null,690,null,null,690]
[null,null,null,null,691,null,null,691]
[null,null,null,null,692,null,null,692]
[null,null,null,null,693,null,null,693]
[null,null,null,null,694,null,null,694]
[null,null,null,null,695,null,null,695]
[null,null,null,null,696,null,null,696]
[null,null,null,null,697,null,null,697]
[null,null,null,null,698,null,null,698]
[null,null,null,null,699,null,null,699]
[null,null,null,null,700,null,null,700]
[null,null,null,null,701,null,null,701]
[null,null,null,null,702,null,null,702]
[null,null,null,null,703,null,null,703]
[null,null,null,null,704,null,null,704]
[null,null,null,null,705,null,null,705]
[null,null,null,null,706,null,null,706]
[null,null,null,null,707,null,null,707]
[null,null,null,null,708,null,null,708]
[null,null,null,null,709,null,null,709]
[null,null,null,null,710,null,null,710]
[null,null,null,null,711,null,null,711]
[null,null,null,null,712,null,null,712]
[null,null,null,null,713,null,null,713]
[null,null,null,null,714,null,null,714]
[null,null,null,null,715,null,null,715]
[null,null,null,null,716,null,null,716]
[null,null,null,null,717,null,null,717]
[null,null,null,null,718,null,null,718]
[null,null,null,null,719,null,null,719]
[null,null,null,null,720,null,null,720]
[null,null,null,null,721,null,null,721]
[null,null,null,null,722,null,null,722]
[null,null,null,null,723,null,null,723]
[null,null,null,null,724,null,null,724]
[null,null,null,null,725,null,null,725]
[null,null,null,null,726,null,null,726]
[null,null,null,null,727,null,null,727]
[null,null,null,null,728,null,null,728]
[null,null,null,null,729,null,null,729]
[null,null,null,null,730,null,null,730]
[null,null,null,null,731,null,null,731]
[null,null,null,null,732,null,null,732]
[null,null,null,null,733,null,null,733]
[null,null,null,null,734,null,null,734]
[null,null,null,null,735,null,null,735]
[null,null,null,null,736,null,null,736]
[null,null,null,null,737,null,null,737]
[null,null,null,null,738,null,null,738]
[null,null,null,null,739,null,null,739]
[null,null,null,null,740,null,null,740]
[null,null,null,null,741,null,null,741]
[null,null,null,null,742,null,null,742]
[null,null,null,null,743,null,null,743]
[null,null,null,null,744,null,null,744]
[null,null,null,null,745,null,null,745]
[null,null,null,null,746,null,null,746]
[null,null,null,null,747,null,null,747]
[null,null,null,null,748,null,null,748]
[null,null,null,null,749,null,null,749]
[null,null,null,null,750,null,null,750]
[null,null,null,null,751,null,null,751]
[null,null,null,null,752,null,null,752]
[null,null,null,null,753,null,null,753]
[null,null,null,null,754,null,null,754]
[null,null,null,null,755,null,null,755]
[null,null,null,null,756,null,null,756]
[null,null,null,null,757,null,null,757]
[null,null,null,null,758,null,null,758]
[null,null,null,null,759,null,null,759]
[null,null,null,null,760,null,null,760]
[null,null,null,null,761,null,null,761]
[null,null,null,null,762,null,null,762]
[null,null,null,null,763,null,null,763]
[null,null,null,null,764,null,null,764]
[null,null,null,null,765,null,null,765]
[null,null,null,null,766,null,null,766]
[null,null,null,null,767,null,null,767]
[null,null,null,null,768,null,null,768]
[null,null,null,null,769,null,null,769]
[null,null,null,null,770,null,null,770]
[null,null,null,null,771,null,null,771]
[null,null,null,null,772,null,null,772]
[null,null,null,null,773,null,null,773]
[null,null,null,null,774,null,null,774]
[null,null,null,null,775,null,null,775]
[null,null,null,null,776,null,null,776]
[null,null,null,null,777,null,null,777]
[null,null,null,null,778,null,null,778]
[null,null,null,null,779,null,null,779]
[null,null,null,null,780,null,null,780]
[null,null,null,null,781,null,null,781]
[null,null,null,null,782,null,null,782]
[null,null,null,null,783,null,null,783]
[null,null,null,null,784,null,null,784]
[null,null,null,null,785,null,null,785]
[null,null,null,null,786,null,null,786]
[null,null,null,null,787,null,null,787]
[null,null,null,null,788,null,null,788]
[null,null,null,null,789,null,null,789]
[null,null,null,null,790,null,null,790]
[null,null,null,null,791,null,null,791]
[null,null,null,null,792,null,null,792]
[null,null,null,null,793,null,null,793]
[null,null,null,null,794,null,null,794]
[null,null,null,null,795,null,null,795]
[null,null,null,null,796,null,null,796]
[null,null,null,null,797,null,null,797]
[null,null,null,null,798,null,null,798]
[null,null,null,null,799,null,null,799]
[null,null,null,null,800,null,null,800]
[null,null,null,null,801,null,null,801]
[null,null,null,null,802,null,null,802]
[null,null,null,null,803,null,null,803]
[null,null,null,null,804,null,null,804]
[null,null,null,null,805,null,null,805]
[null,null,null,null,806,null,null,806]
[null,null,null,null,807,null,null,807]
[null,null,null,null,808,null,null,808]
[null,null,null,null,809,null,null,809]
[null,null,null,null,810,null,null,810]
[null,null,null,null,811,null,null,811]
[null,null,null,null,812,null,null,812]
[null,null,null,null,813,null,null,813]
[null,null,null,null,814,null,null,814]
[null,null,null,null,815,null,null,815]
[null,null,null,null,816,null,null,816]
[null,null,null,null,817,null,null,817]
[null,null,null,null,818,null,null,818]
[null,null,null,null,819,null,null,819]
[null,null,null,null,820,null,null,820]
[null,null,null,null,821,null,null,821]
[null,null,null,null,822,null,null,822]
[null,null,null,null,823,null,null,823]
[null,null,null,null,824,null,null,824]
[null,null,null,null,825,null,null,825]
[null,null,null,null,826,null,null,826]
[null,null,null,null,827,null,null,827]
[null,null,null,null,828,null,null,828]
[null,null,null,null,829,null,null,829]
[null,null,null,null,830,null,null,830]
[null,null,null,null,831,null,null,831]
[null,null,null,null,832,null,null,832]
[null,null,null,null,833,null,null,833]
[null,null,null,null,834,null,null,834]
[null,null,null,null,835,null,null,835]
[null,null,null,null,836,null,null,836]
[null,null,null,null,837,null,null,837]
[null,null,null,null,838,null,null,838]
[null,null,null,null,839,null,null,839]
[null,null,null,null,840,null,null,840]
[null,null,null,null,841,null,null,841]
[null,null,null,null,842,null,null,842]
[null,null,null,null,843,null,null,843]
[null,null,null,null,844,null,null,844]
[null,null,null,null,845,null,null,845]
[null,null,null,null,846,null,null,846]
[null,null,null,null,847,null,null,847]
[null,null,null,null,848,null,null,848]
[null,null,null,null,849,null,null,849]
[null,null,null,null,850,null,null,850]
[null,null,null,null,851,null,null,851]
[null,null,null,null,852,null,null,852]
[null,null,null,null,853,null,null,853]
[null,null,null,null,854,null,null,854]
[null,null,null,null,855,null,null,855]
[null,null,null,null,856,null,null,856]
[null,null,null,null,857,null,null,857]
[null,null,null,null,858,null,null,858]
[null,null,null,null,859,null,null,859]
[null,null,null,null,860,null,null,860]
[null,null,null,null,861,null,null,861]
[null,null,null,null,862,null,null,862]
[null,null,null,null,863,null,null,863]
[null,null,null,null,864,null,null,864]
[null,null,null,null,865,null,null,865]
[null,null,null,null,866,null,null,866]
[null,null,null,null,867,null,null,867]
[null,null,null,null,868,null,null,868]
[null,null,null,null,869,null,null,869]
[null,null,null,null,870,null,null,870]
[null,null,null,null,871,null,null,871]
[null,null,null,null,872,null,null,872]
[null,null,null,null,873,null,null,873]
[null,null,null,null,874,null,null,874]
[null,null,null,null,875,null,null,875]
[null,null,null,null,876,null,null,876]
[null,null,null,null,877,null,null,877]
[null,null,null,null,878,null,null,878]
[null,null,null,null,879,null,null,879]
[null,null,null,null,880,null,null,880]
[null,null,null,null,881,null,null,881]
[null,null,null,null,882,null,null,882]
[null,null,null,null,883,null,null,883]
[null,null,null,null,884,null,null,884]
[null,null,null,null,885,null,null,885]
[null,null,null,null,886,null,null,886]
[null,null,null,null,887,null,null,887]
[null,null,null,null,888,null,null,888]
[null,null,null,null,889,null,null,889]
[null,null,null,null,890,null,null,890]
[null,null,null,null,891,null,null,891]
[null,null,null,null,892,null,null,892]
[null,null,null,null,893,null,null,893]
[null,null,null,null,894,null,null,894]
[null,null,null,null,895,null,null,895]
[null,null,null,null,896,null,null,896]
[null,null,null,null,897,null,null,897]
[null,null,null,null,898,null,null,898]
[null,null,null,null,899,null,null,899]
[null,null,null,null,900,null,null,900]
[null,null,null,null,901,null,null,901]
[null,null,null,null,902,null,null,902]
[null,null,null,null,903,null,null,903]
[null,null,null,null,904,null,null,904]
[null,null,null,null,905,null,null,905]
[null,null,null,null,906,null,null,906]
[null,null,null,null,907,null,null,907]
[null,null,null,null,908,null,null,908]
[null,null,null,null,909,null,null,909]
[null,null,null,null,910,null,null,910]
[null,null,null,null,911,null,null,911]
[null,null,null,null,912,null,null,912]
[null,null,null,null,913,null,null,913]
[null,null,null,null,914,null,null,914]
[null,null,null,null,915,null,null,915]
[null,null,null,null,916,null,null,916]
[null,null,null,null,917,null,null,917]
[null,null,null,null,918,null,null,918]
[null,null,null,null,919,null,null,919]
[null,null,null,null,920,null,null,920]
[null,null,null,null,921,null,null,921]
[null,null,null,null,922,null,null,922]
[null,null,null,null,923,null,null,923]
[null,null,null,null,924,null,null,924]
[null,null,null,null,925,null,null,925]
[null,null,null,null,926,null,null,926]
[null,null,null,null,927,null,null,927]
[null,null,null,null,928,null,null,928]
[null,null,null,null,929,null,null,929]
[null,null,null,null,930,null,null,930]
[null,null,null,null,931,null,null,931]
[null,null,null,null,932,null,null,932]
[null,null,null,null,933,null,null,933]
[null,null,null,null,934,null,null,934]
[null,null,null,null,935,null,null,935]
[null,null,null,null,936,null,null,936]
[null,null,null,null,937,null,null,937]
[null,null,null,null,938,null,null,938]
[null,null,null,null,939,null,null,939]
[null,null,null,null,940,null,null,940]
[null,null,null,null,941,null,null,941]
[null,null,null,null,942,null,null,942]
[null,null,null,null,943,null,null,943]
[null,null,null,null,944,null,null,944]
[null,null,null,null,945,null,null,945]
[null,null,null,null,946,null,null,946]
[null,null,null,null,947,null,null,947]
[null,null,null,null,948,null,null,948]
[null,null,null,null,949,null,null,949]
[null,null,null,null,950,null,null,950]
[null,null,null,null,951,null,null,951]
[null,null,null,null,952,null,null,952]
[null,null,null,null,953,null,null,953]
[null,null,null,null,954,null,null,954]
[null,null,null,null,955,null,null,955]
[null,null,null,null,956,null,null,956]
[null,null,null,null,957,null,null,957]
[null,null,null,null,958,null,null,958]
[null,null,null,null,959,null,null,959]
[null,null,null,null,960,null,null,960]
[null,null,null,null,961,null,null,961]
[null,null,null,null,962,null,null,962]
[null,null,null,null,963,null,null,963]
[null,null,null,null,964,null,null,964]
[null,null,null,null,965,null,null,965]
[null,null,null,null,966,null,null,966]
[null,null,null,null,967,null,null,967]
[null,null,null,null,968,null,null,968]
[null,null,null,null,969,null,null,969]
[null,null,null,null,970,null,null,970]
[null,null,null,null,971,null,null,971]
[null,null,null,null,972,null,null,972]
[null,null,null,null,973,null,null,973]
[null,null,null,null,974,null,null,974]
[null,null,null,null,975,null,null,975]
[null,null,null,null,976,null,null,976]
[null,null,null,null,977,null,null,977]
[null,null,null,null,978,null,null,978]
[null,null,null,null,979,null,null,979]
[null,null,null,null,980,null,null,980]
[null,null,null,null,981,null,null,981]
[null,null,null,null,982,null,null,982]
[null,null,null,null,983,null,null,983]
[null,null,null,null,984,null,null,984]
[null,null,null,null,985,null,null,985]
[null,null,null,null,986,null,null,986]
[null,null,null,null,987,null,null,987]
[null,null,null,null,988,null,null,988]
[null,null,null,null,989,null,null,989]
[null,null,null,null,990,null,null,990]
[null,null,null,null,991,null,null,991]
[null,null,null,null,992,null,null,992]
[null,null,null,null,993,null,null,993]
[null,null,null,null,994,null,null,994]
[null,null,null,null,995,null,null,995]
[null,null,null,null,996,null,null,996]
[null,null,null,null,997,null,null,997]
[null,null,null,null,998,null,null,998]
[null,null,null,null,999,null,null,999]
[null,null,null,null,1000,null,null,1000]
[null,null,null,null,1001,null,null,1001]
[null,null,null,null,1002,null,null,1002]
[null,null,null,null,1003]
[null,null,null,null,1004]
[null,null,null,null,1005]
[null,null,null,null,1006]
[null,null,null,null,1007]
[null,null,null,null,1008]
[null,null,null,null,1009]
[null,null,null,null,1010]
[null,null,null,null,1011]
[null,null,null,null,1012]
[null,null,null,null,1013]
[null,null,null,null,1014]
[null,null,null,null,1015]
[null,null,null,null,1016]
[null,null,null,null,1017]
[null,null,null,null,1018]
[null,null,null,null,1019]
[null,null,null,null,1020]
[null,null,null,null,1021]
[null,null,null,null,1022]
[null,null,null,null,1023]
[null,null,null,null,1024]
[null,null,null,null,1025]
[null,null,null,null,1026]
[null,null,null,null,1027]
[null,null,null,null,1028]
[null,null,null,null,1029]
[null,null,null,null,1030]
[null,null,null,null,1031]
[null,null,null,null,1032]
[null,null,null,null,1033]
[null,null,null,null,1034]
[null,null,null,null,1035]
[null,null,null,null,1036]
[null,null,null,null,1037]
[null,null,null,null,1038]
[null,null,null,null,1039]
[null,null,null,null,1040]
[null,null,null,null,1041]
[null,null,null,null,1042]
[null,null,null,null,1043]
[null,null,null,null,1044]
[null,null,null,null,1045]
[null,null,null,null,1046]
[null,null,null,null,1047]
[null,null,null,null,1048]
[null,null,null,null,1049]
[null,null,null,null,1050]
[null,null,null,null,1051]
[null,null,null,null,1052]
[null,null,null,null,1053]
[null,null,null,null,1054]
[null,null,null,null,1055]
[null,null,null,null,1056]
[null,null,null,null,1057]
[null,null,null,null,1058]
[null,null,null,null,1059]
[null,null,null,null,1060]
[null,null,null,null,1061]
[null,null,null,null,1062]
[null,null,null,null,1063]
[null,null,null,null,1064]
[null,null,null,null,1065]
[null,null,null,null,1066]
[null,null,null,null,1067]
[null,null,null,null,1068]
[null,null,null,null,1069]
[null,null,null,null,1070]
[null,null,null,null,1071]
[null,null,null,null,1072]
[null,null,null,null,1073]
[null,null,null,null,1074]
[null,null,null,null,1075]
[null,null,null,null,1076]
[null,null,null,null,1077]
[null,null,null,null,1078]
[null,null,null,null,1079]
[null,null,null,null,1080]
[null,null,null,null,1081]
[null,null,null,null,1082]
[null,null,null,null,1083]
[null,null,null,null,1084]
[null,null,null,null,1085]
[null,null,null,null,1086]
[null,null,null,null,1087]
[null,null,null,null,1088]
[null,null,null,null,1089]
[null,null,null,null,1090]
[null,null,null,null,1091]
[null,null,null,null,1092]
[null,null,null,null,1093]
[null,null,null,null,1094]
[null,null,null,null,1095]
[null,null,null,null,1096]
[null,null,null,null,1097]
[null,null,null,null,1098]
[null,null,null,null,1099]
[null,null,null,null,1100]
[null,null,null,null,1101]
[null,null,null,null,1102]
[null,null,null,null,1103]
[null,null,null,null,1104]
[null,null,null,null,1105]
[null,null,null,null,1106]
[null,null,null,null,1107]
[null,null,null,null,1108]
[null,null,null,null,1109]
[null,null,null,null,1110]
[null,null,null,null,1111]
[null,null,null,null,1112]
[null,null,null,null,1113]
[null,null,null,null,1114]
[null,null,null,null,1115]
[null,null,null,null,1116]
[null,null,null,null,1117]
[null,null,null,null,1118]
[null,null,null,null,1119]
[null,null,null,null,1120]
[null,null,null,null,1121]
[null,null,null,null,1122]
[null,null,null,null,1123]
[null,null,null,null,1124]
[null,null,null,null,1125]
[null,null,null,null,1126]
[null,null,null,null,1127]
[null,null,null,null,1128]
[null,null,null,null,1129]
[null,null,null,null,1130]
[null,null,null,null,1131]
[null,null,null,null,1132]
[null,null,null,null,1133]
[null,null,null,null,1134]
[null,null,null,null,1135]
[null,null,null,null,1136]
[null,null,null,null,1137]
[null,null,null,null,1138]
[null,null,null,null,1139]
[null,null,null,null,1140]
[null,null,null,null,1141]
[null,null,null,null,1142]
[null,null,null,null,1143]
[null,null,null,null,1144]
[null,null,null,null,1145]
[null,null,null,null,1146]
[null,null,null,null,1147]
[null,null,null,null,1148]
[null,null,null,null,1149]
[null,null,null,null,1150]
[null,null,null,null,1151]
[null,null,null,null,1152]
[null,null,null,null,1153]
[null,null,null,null,1154]
[null,null,null,null,1155]
[null,null,null,null,1156]
[null,null,null,null,1157]
[null,null,null,null,1158]
[null,null,null,null,1159]
[null,null,null,null,1160]
[null,null,null,null,1161]
[null,null,null,null,1162]
[null,null,null,null,1163]
[null,null,null,null,1164]
[null,null,null,null,1165]
[null,null,null,null,1166]
[null,null,null,null,1167]
[null,null,null,null,1168]
[null,null,null,null,1169]
[null,null,null,null,1170]
[null,null,null,null,1171]
[null,null,null,null,1172]
[null,null,null,null,1173]
[null,null,null,null,1174]
[null,null,null,null,1175]
[null,null,null,null,1176]
[null,null,null,null,1177]
[null,null,null,null,1178]
[null,null,null,null,1179]
[null,null,null,null,1180]
[null,null,null,null,1181]
[null,null,null,null,1182]
[null,null,null,null,1183]
[null,null,null,null,1184]
[null,null,null,null,1185]
[null,null,null,null,1186]
[null,null,null,null,1187]
[null,null,null,null,1188]
[null,null,null,null,1189]
[null,null,null,null,1190]
[null,null,null,null,1191]
[null,null,null,null,1192]
[null,null,null,null,1193]
[null,null,null,null,1194]
[null,null,null,null,1195]
[null,null,null,null,1196]
[null,null,null,null,1197]
[null,null,null,null,1198]
[null,null,null,null,1199]
[null,null,null,null,1200]
[null,null,null,null,1201]
[null,null,null,null,1202]
[null,null,null,null,1203]
[null,null,null,null,1204]
[null,null,null,null,1205]
[null,null,null,null,1206]
[null,null,null,null,1207]
[null,null,null,null,1208]
[null,null,null,null,1209]
[null,null,null,null,1210]
[null,null,null,null,1211]
[null,null,null,null,1212]
[null,null,null,null,1213]
[null,null,null,null,1214]
[null,null,null,null,1215]
[null,null,null,null,1216]
[null,null,null,null,1217]
[null,null,null,null,1218]
[null,null,null,null,1219]
[null,null,null,null,1220]
[null,null,null,null,1221]
[null,null,null,null,1222]
[null,null,null,null,1223]
[null,null,null,null,1224]
[null,null,null,null,1225]
[null,null,null,null,1226]
[null,null,null,null,1227]
[null,null,null,null,1228]
[null,null,null,null,1229]
[null,null,null,null,1230]
[null,null,null,null,1231]
[null,null,null,null,1232]
[null,null,null,null,1233]
[null,null,null,null,1234]
[null,null,null,null,1235]
[null,null,null,null,1236]
[null,null,null,null,1237]
[null,null,null,null,1238]
[null,null,null,null,1239]
[null,null,null,null,1240]
[null,null,null,null,1241]
[null,null,null,null,1242]
[null,null,null,null,1243]
[null,null,null,null,1244]
[null,null,null,null,1245]
[null,null,null,null,1246]
[null,null,null,null,1247]
[null,null,null,null,1248]
[null,null,null,null,1249]
[null,null,null,null,1250]
[null,null,null,null,1251]
[null,null,null,null,1252]
[null,null,null,null,1253]
[null,null,null,null,1254]
[null,null,null,null,1255]
[null,null,null,null,1256]
[null,null,null,null,1257]
[null,null,null,null,1258]
[null,null,null,null,1259]
[null,null,null,null,1260]
[null,null,null,null,1261]
[null,null,null,null,1262]
[null,null,null,null,1263]
[null,null,null,null,1264]
[null,null,null,null,1265]
[null,null,null,null,1266]
[null,null,null,null,1267]
[null,null,null,null,1268]
[null,null,null,null,1269]
[null,null,null,null,1270]
[null,null,null,null,1271]
[null,null,null,null,1272]
[null,null,null,null,1273]
[null,null,null,null,1274]
[null,null,null,null,1275]
[null,null,null,null,1276]
[null,null,null,null,1277]
[null,null,null,null,1278]
[null,null,null,null,1279]
[null,null,null,null,1280]
[null,null,null,null,1281]
[null,null,null,null,1282]
[null,null,null,null,1283]
[null,null,null,null,1284]
[null,null,null,null,1285]
[null,null,null,null,1286]
[null,null,null,null,1287]
[null,null,null,null,1288]
[null,null,null,null,1289]
[null,null,null,null,1290]
[null,null,null,null,1291]
[null,null,null,null,1292]
[null,null,null,null,1293]
[null,null,null,null,1294]
[null,null,null,null,1295]
[null,null,null,null,1296]
[null,null,null,null,1297]
[null,null,null,null,1298]
[null,null,null,null,1299]
[null,null,null,null,1300]
[null,null,null,null,1301]
[null,null,null,null,1302]
[null,null,null,null,1303]
[null,null,null,null,1304]
[null,null,null,null,1305]
[null,null,null,null,1306]
[null,null,null,null,1307]
[null,null,null,null,1308]
[null,null,null,null,1309]
[null,null,null,null,1310]
[null,null,null,null,1311]
[null,null,null,null,1312]
[null,null,null,null,1313]
[null,null,null,null,1314]
[null,null,null,null,1315]
[null,null,null,null,1316]
[null,null,null,null,1317]
[null,null,null,null,1318]
[null,null,null,null,1319]
[null,null,null,null,1320]
[null,null,null,null,1321]
[null,null,null,null,1322]
[null,null,null,null,1323]
[null,null,null,null,1324]
[null,null,null,null,1325]
[null,null,null,null,1326]
[null,null,null,null,1327]
[null,null,null,null,1328]
[null,null,null,null,1329]
[null,null,null,null,1330]
[null,null,null,null,1331]
[null,null,null,null,1332]
[null,null,null,null,1333]
[null,null,null,null,1334]
[null,null,null,null,1335]
[null,null,null,null,1336]
[null,null,null,null,1337]
[null,null,null,null,1338]
[null,null,null,null,1339]
[null,null,null,null,1340]
[null,null,null,null,1341]
[null,null,null,null,1342]
[null,null,null,null,1343]
[null,null,null,null,1344]
[null,null,null,null,1345]
[null,null,null,null,1346]
[null,null,null,null,1347]
[null,null,null,null,1348]
[null,null,null,null,1349]
[null,null,null,null,1350]
[null,null,null,null,1351]
[null,null,null,null,1352]
[null,null,null,null,1353]
[null,null,null,null,1354]
[null,null,null,null,1355]
[null,null,null,null,1356]
[null,null,null,null,1357]
[null,null,null,null,1358]
[null,null,null,null,1359]
[null,null,null,null,1360]
[null,null,null,null,1361]
[null,null,null,null,1362]
[null,null,null,null,1363]
[null,null,null,null,1364]
[null,null,null,null,1365]
[null,null,null,null,1366]
[null,null,null,null,1367]
[null,null,null,null,1368]
[null,null,null,null,1369]
[null,null,null,null,1370]
[null,null,null,null,1371]
[null,null,null,null,1372]
[null,null,null,null,1373]
[null,null,null,null,1374]
[null,null,null,null,1375]
[null,null,null,null,1376]
[null,null,null,null,1377]
[null,null,null,null,1378]
[null,null,null,null,1379]
[null,null,null,null,1380]
[null,null,null,null,1381]
[null,null,null,null,1382]
[null,null,null,null,1383]
[null,null,null,null,1384]
[null,null,null,null,1385]
[null,null,null,null,1386]
[null,null,null,null,1387]
[null,null,null,null,1388]
[null,null,null,null,1389]
[null,null,null,null,1390]
[null,null,null,null,1391]
[null,null,null,null,1392]
[null,null,null,null,1393]
[null,null,null,null,1394]
[null,null,null,null,1395]
[null,null,null,null,1396]
[null,null,null,null,1397]
[null,null,null,null,1398]
[null,null,null,null,1399]
[null,null,null,null,1400]
[null,null,null,null,1401]
[null,null,null,null,1402]
[null,null,null,null,1403]
[null,null,null,null,1404]
[null,null,null,null,1405]
[null,null,null,null,1406]
[null,null,null,null,1407]
[null,null,null,null,1408]
[null,null,null,null,1409]
[null,null,null,null,1410]
[null,null,null,null,1411]
[null,null,null,null,1412]
[null,null,null,null,1413]
[null,null,null,null,1414]
[null,null,null,null,1415]
[null,null,null,null,1416]
[null,null,null,null,1417]
[null,null,null,null,1418]
[null,null,null,null,1419]
[null,null,null,null,1420]
[null,null,null,null,1421]
[null,null,null,null,1422]
[null,null,null,null,1423]
[null,null,null,null,1424]
[null,null,null,null,1425]
[null,null,null,null,1426]
[null,null,null,null,1427]
[null,null,null,null,1428]
[null,null,null,null,1429]
[null,null,null,null,1430]
[null,null,null,null,1431]
[null,null,null,null,1432]
[null,null,null,null,1433]
[null,null,null,null,1434]
[null,null,null,null,1435]
[null,null,null,null,1436]
[null,null,null,null,1437]
[null,null,null,null,1438]
[null,null,null,null,1439]
[null,null,null,null,1440]
[null,null,null,null,1441]
[null,null,null,null,1442]
[null,null,null,null,1443]
[null,null,null,null,1444]
[null,null,null,null,1445]
[null,null,null,null,1446]
[null,null,null,null,1447]
[null,null,null,null,1448]
[null,null,null,null,1449]
[null,null,null,null,1450]
[null,null,null,null,1451]
[null,null,null,null,1452]
[null,null,null,null,1453]
[null,null,null,null,1454]
[null,null,null,null,1455]
[null,null,null,null,1456]
[null,null,null,null,1457]
[null,null,null,null,1458]
[null,null,null,null,1459]
[null,null,null,null,1460]
[null,null,null,null,1461]
[null,null,null,null,1462]
[null,null,null,null,1463]
[null,null,null,null,1464]
[null,null,null,null,1465]
[null,null,null,null,1466]
[null,null,null,null,1467]
[null,null,null,null,1468]
[null,null,null,null,1469]
[null,null,null,null,1470]
[null,null,null,null,1471]
[null,null,null,null,1472]
[null,null,null,null,1473]
[null,null,null,null,1474]
[null,null,null,null,1475]
[null,null,null,null,1476]
[null,null,null,null,1477]
[null,null,null,null,1478]
[null,null,null,null,1479]
[null,null,null,null,1480]
[null,null,null,null,1481]
[null,null,null,null,1482]
[null,null,null,null,1483]
[null,null,null,null,1484]
[null,null,null,null,1485]
[null,null,null,null,1486]
[null,null,null,null,1487]
[null,null,null,null,1488]
[null,null,null,null,1489]
[null,null,null,null,1490]
[null,null,null,null,1491]
[null,null,null,null,1492]
[null,null,null,null,1493]
[null,null,null,null,1494]
[null,null,null,null,1495]
[null,null,null,null,1496]
[null,null,null,null,1497]
[null,null,null,null,1498]
[null,null,null,null,1499]
[null,null,null,null,1500]
[null,null,null,null,1501]
[null,null,null,null,1502]
[null,null,null,null,1503]
[null,null,null,null,1504]
[null,null,null,null,1505]
[null,null,null,null,1506]
[null,null,null,null,1507]
[null,null,null,null,1508]
[null,null,null,null,1509]
[null,null,null,null,1510]
[null,null,null,null,1511]
[null,null,null,null,1512]
[null,null,null,null,1513]
[null,null,null,null,1514]
[null,null,null,null,1515]
[null,null,null,null,1516]
[null,null,null,null,1517]
[null,null,null,null,1518]
[null,null,null,null,1519]
[null,null,null,null,1520]
[null,null,null,null,1521]
[null,null,null,null,1522]
[null,null,null,null,1523]
[null,null,null,null,1524]
[null,null,null,null,1525]
[null,null,null,null,1526]
[null,null,null,null,1527]
[null,null,null,null,1528]
[null,null,null,null,1529]
[null,null,null,null,1530]
[null,null,null,null,1531]
[null,null,null,null,1532]
[null,null,null,null,1533]
[null,null,null,null,1534]
[null,null,null,null,1535]
[null,null,null,null,1536]
[null,null,null,null,1537]
[null,null,null,null,1538]
[null,null,null,null,1539]
[null,null,null,null,1540]
[null,null,null,null,1541]
[null,null,null,null,1542]
[null,null,null,null,1543]
[null,null,null,null,1544]
[null,null,null,null,1545]
[null,null,null,null,1546]
[null,null,null,null,1547]
[null,null,null,null,1548]
[null,null,null,null,1549]
[null,null,null,null,1550]
[null,null,null,null,1551]
[null,null,null,null,1552]
[null,null,null,null,1553]
[null,null,null,null,1554]
[null,null,null,null,1555]
[null,null,null,null,1556]
[null,null,null,null,1557]
[null,null,null,null,1558]
[null,null,null,null,1559]
[null,null,null,null,1560]
[null,null,null,null,1561]
[null,null,null,null,1562]
[null,null,null,null,1563]
[null,null,null,null,1564]
[null,null,null,null,1565]
[null,null,null,null,1566]
[null,null,null,null,1567]
[null,null,null,null,1568]
[null,null,null,null,1569]
[null,null,null,null,1570]
[null,null,null,null,1571]
[null,null,null,null,1572]
[null,null,null,null,1573]
[null,null,null,null,1574]
[null,null,null,null,1575]
[null,null,null,null,1576]
[null,null,null,null,1577]
[null,null,null,null,1578]
[null,null,null,null,1579]
[null,null,null,null,1580]
[null,null,null,null,1581]
[null,null,null,null,1582]
[null,null,null,null,1583]
[null,null,null,null,1584]
[null,null,null,null,1585]
[null,null,null,null,1586]
[null,null,null,null,1587]
[null,null,null,null,1588]
[null,null,null,null,1589]
[null,null,null,null,1590]
[null,null,null,null,1591]
[null,null,null,null,1592]
[null,null,null,null,1593]
[null,null,null,null,1594]
[null,null,null,null,1595]
[null,null,null,null,1596]
[null,null,null,null,1597]
[null,null,null,null,1598]
[null,null,null,null,1599]
[null,null,null,null,1600]
[null,null,null,null,1601]
[null,null,null,null,1602]
[null,null,null,null,1603]
[null,null,null,null,1604]
[null,null,null,null,1605]
[null,null,null,null,1606]
[null,null,null,null,1607]
[null,null,null,null,1608]
[null,null,null,null,1609]
[null,null,null,null,1610]
[null,null,null,null,1611]
[null,null,null,null,1612]
[null,null,null,null,1613]
[null,null,null,null,1614]
[null,null,null,null,1615]
[null,null,null,null,1616]
[null,null,null,null,1617]
[null,null,null,null,1618]
[null,null,null,null,1619]
[null,null,null,null,1620]
[null,null,null,null,1621]
[null,null,null,null,1622]
[null,null,null,null,1623]
[null,null,null,null,1624]
[null,null,null,null,1625]
[null,null,null,null,1626]
[null,null,null,null,1627]
[null,null,null,null,1628]
[null,null,null,null,1629]
[null,null,null,null,1630]
[null,null,null,null,1631]
[null,null,null,null,1632]
[null,null,null,null,1633]
[null,null,null,null,1634]
[null,null,null,null,1635]
[null,null,null,null,1636]
[null,null,null,null,1637]
[null,null,null,null,1638]
[null,null,null,null,1639]
[null,null,null,null,1640]
[null,null,null,null,1641]
[null,null,null,null,1642]
[null,null,null,null,1643]
[null,null,null,null,1644]
[null,null,null,null,1645]
[null,null,null,null,1646]
[null,null,null,null,1647]
[null,null,null,null,1648]
[null,null,null,null,1649]
[null,null,null,null,1650]
[null,null,null,null,1651]
[null,null,null,null,1652]
[null,null,null,null,1653]
[null,null,null,null,1654]
[null,null,null,null,1655]
[null,null,null,null,1656]
[null,null,null,null,1657]
[null,null,null,null,1658]
[null,null,null,null,1659]
[null,null,null,null,1660]
[null,null,null,null,1661]
[null,null,null,null,1662]
[null,null,null,null,1663]
[null,null,null,null,1664]
[null,null,null,null,1665]
[null,null,null,null,1666]
[null,null,null,null,1667]
[null,null,null,null,1668]
[null,null,null,null,1669]
[null,null,null,null,1670]
[null,null,null,null,1671]
[null,null,null,null,1672]
[null,null,null,null,1673]
[null,null,null,null,1674]
[null,null,null,null,1675]
[null,null,null,null,1676]
[null,null,null,null,1677]
[null,null,null,null,1678]
[null,null,null,null,1679]
[null,null,null,null,1680]
[null,null,null,null,1681]
[null,null,null,null,1682]
[null,null,null,null,1683]
[null,null,null,null,1684]
[null,null,null,null,1685]
[null,null,null,null,1686]
[null,null,null,null,1687]
[null,null,null,null,1688]
[null,null,null,null,1689]
[null,null,null,null,1690]
[null,null,null,null,1691]
[null,null,null,null,1692]
[null,null,null,null,1693]
[null,null,null,null,1694]
[null,null,null,null,1695]
[null,null,null,null,1696]
[null,null,null,null,1697]
[null,null,null,null,1698]
[null,null,null,null,1699]
[null,null,null,null,1700]
[null,null,null,null,1701]
[null,null,null,null,1702]
[null,null,null,null,1703]
[null,null,null,null,1704]
[null,null,null,null,1705]
[null,null,null,null,1706]
[null,null,null,null,1707]
[null,null,null,null,1708]
[null,null,null,null,1709]
[null,null,null,null,1710]
[null,null,null,null,1711]
[null,null,null,null,1712]
[null,null,null,null,1713]
[null,null,null,null,1714]
[null,null,null,null,1715]
[null,null,null,null,1716]
[null,null,null,null,1717]
[null,null,null,null,1718]
[null,null,null,null,1719]
[null,null,null,null,1720]
[null,null,null,null,1721]
[null,null,null,null,1722]
[null,null,null,null,1723]
[null,null,null,null,1724]
[null,null,null,null,1725]
[null,null,null,null,1726]
[null,null,null,null,1727]
[null,null,null,null,1728]
[null,null,null,null,1729]
[null,null,null,null,1730]
[null,null,null,null,1731]
[null,null,null,null,1732]
[null,null,null,null,1733]
[null,null,null,null,1734]
[null,null,null,null,1735]
[null,null,null,null,1736]
[null,null,null,null,1737]
[null,null,null,null,1738]
[null,null,null,null,1739]
[null,null,null,null,1740]
[null,null,null,null,1741]
[null,null,null,null,1742]
[null,null,null,null,1743]
[null,null,null,null,1744]
[null,null,null,null,1745]
[null,null,null,null,1746]
[null,null,null,null,1747]
[null,null,null,null,1748]
[null,null,null,null,1749]
[null,null,null,null,1750]
[null,null,null,null,1751]
[null,null,null,null,1752]
[null,null,null,null,1753]
[null,null,null,null,1754]
[null,null,null,null,1755]
[null,null,null,null,1756]
[null,null,null,null,1757]
[null,null,null,null,1758]
[null,null,null,null,1759]
[null,null,null,null,1760]
[null,null,null,null,1761]
[null,null,null,null,1762]
[null,null,null,null,1763]
[null,null,null,null,1764]
[null,null,null,null,1765]
[null,null,null,null,1766]
[null,null,null,null,1767]
[null,null,null,null,1768]
[null,null,null,null,1769]
[null,null,null,null,1770]
[null,null,null,null,1771]
[null,null,null,null,1772]
[null,null,null,null,1773]
[null,null,null,null,1774]
[null,null,null,null,1775]
[null,null,null,null,1776]
[null,null,null,null,1777]
[null,null,null,null,1778]
[null,null,null,null,1779]
[null,null,null,null,1780]
[null,null,null,null,1781]
[null,null,null,null,1782]
[null,null,null,null,1783]
[null,null,null,null,1784]
[null,null,null,null,1785]
[null,null,null,null,1786]
[null,null,null,null,1787]
[null,null,null,null,1788]
[null,null,null,null,1789]
[null,null,null,null,1790]
[null,null,null,null,1791]
[null,null,null,null,1792]
[null,null,null,null,1793]
[null,null,null,null,1794]
[null,null,null,null,1795]
[null,null,null,null,1796]
[null,null,null,null,1797]
[null,null,null,null,1798]
[null,null,null,null,1799]
[null,null,null,null,1800]
[null,null,null,null,1801]
[null,null,null,null,1802]
[null,null,null,null,1803]
[null,null,null,null,1804]
[null,null,null,null,1805]
[null,null,null,null,1806]
[null,null,null,null,1807]
[null,null,null,null,1808]
[null,null,null,null,1809]
[null,null,null,null,1810]
[null,null,null,null,1811]
[null,null,null,null,1812]
[null,null,null,null,1813]
[null,null,null,null,1814]
[null,null,null,null,1815]
[null,null,null,null,1816]
[null,null,null,null,1817]
[null,null,null,null,1818]
[null,null,null,null,1819]
[null,null,null,null,1820]
[null,null,null,null,1821]
[null,null,null,null,1822]
[null,null,null,null,1823]
[null,null,null,null,1824]
[null,null,null,null,1825]
[null,null,null,null,1826]
[null,null,null,null,1827]
[null,null,null,null,1828]
[null,null,null,null,1829]
[null,null,null,null,1830]
[null,null,null,null,1831]
[null,null,null,null,1832]
[null,null,null,null,1833]
[null,null,null,null,1834]
[null,null,null,null,1835]
[null,null,null,null,1836]
[null,null,null,null,1837]
[null,null,null,null,1838]
[null,null,null,null,1839]
[null,null,null,null,1840]
[null,null,null,null,1841]
[null,null,null,null,1842]
[null,null,null,null,1843]
[null,null,null,null,1844]
[null,null,null,null,1845]
[null,null,null,null,1846]
[null,null,null,null,1847]
[null,null,null,null,1848]
[null,null,null,null,1849]
[null,null,null,null,1850]
[null,null,null,null,1851]
[null,null,null,null,1852]
[null,null,null,null,1853]
[null,null,null,null,1854]
[null,null,null,null,1855]
[null,null,null,null,1856]
[null,null,null,null,1857]
[null,null,null,null,1858]
[null,null,null,null,1859]
[null,null,null,null,1860]
[null,null,null,null,1861]
[null,null,null,null,1862]
[null,null,null,null,1863]
[null,null,null,null,1864]
[null,null,null,null,1865]
[null,null,null,null,1866]
[null,null,null,null,1867]
[null,null,null,null,1868]
[null,null,null,null,1869]
[null,null,null,null,1870]
[null,null,null,null,1871]
[null,null,null,null,1872]
[null,null,null,null,1873]
[null,null,null,null,1874]
[null,null,null,null,1875]
[null,null,null,null,1876]
[null,null,null,null,1877]
[null,null,null,null,1878]
[null,null,null,null,1879]
[null,null,null,null,1880]
[null,null,null,null,1881]
[null,null,null,null,1882]
[null,null,null,null,1883]
[null,null,null,null,1884]
[null,null,null,null,1885]
[null,null,null,null,1886]
[null,null,null,null,1887]
[null,null,null,null,1888]
[null,null,null,null,1889]
[null,null,null,null,1890]
[null,null,null,null,1891]
[null,null,null,null,1892]
[null,null,null,null,1893]
[null,null,null,null,1894]
[null,null,null,null,1895]
[null,null,null,null,1896]
[null,null,null,null,1897]
[null,null,null,null,1898]
[null,null,null,null,1899]
[null,null,null,null,1900]
[null,null,null,null,1901]
[null,null,null,null,1902]
[null,null,null,null,1903]
[null,null,null,null,1904]
[null,null,null,null,1905]
[null,null,null,null,1906]
[null,null,null,null,1907]
[null,null,null,null,1908]
[null,null,null,null,1909]
[null,null,null,null,1910]
[null,null,null,null,1911]
[null,null,null,null,1912]
[null,null,null,null,1913]
[null,null,null,null,1914]
[null,null,null,null,1915]
[null,null,null,null,1916]
[null,null,null,null,1917]
[null,null,null,null,1918]
[null,null,null,null,1919]
[null,null,null,null,1920]
[null,null,null,null,1921]
[null,null,null,null,1922]
[null,null,null,null,1923]
[null,null,null,null,1924]
[null,null,null,null,1925]
[null,null,null,null,1926]
[null,null,null,null,1927]
[null,null,null,null,1928]
[null,null,null,null,1929]
[null,null,null,null,1930]
[null,null,null,null,1931]
[null,null,null,null,1932]
[null,null,null,null,1933]
[null,null,null,null,1934]
[null,null,null,null,1935]
[null,null,null,null,1936]
[null,null,null,null,1937]
[null,null,null,null,1938]
[null,null,null,null,1939]
[null,null,null,null,1940]
[null,null,null,null,1941]
[null,null,null,null,1942]
[null,null,null,null,1943]
[null,null,null,null,1944]
[null,null,null,null,1945]
[null,null,null,null,1946]
[null,null,null,null,1947]
[null,null,null,null,1948]
[null,null,null,null,1949]
[null,null,null,null,1950]
[null,null,null,null,1951]
[null,null,null,null,1952]
[null,null,null,null,1953]
[null,null,null,null,1954]
[null,null,null,null,1955]
[null,null,null,null,1956]
[null,null,null,null,1957]
[null,null,null,null,1958]
[null,null,null,null,1959]
[null,null,null,null,1960]
[null,null,null,null,1961]
[null,null,null,null,1962]
[null,null,null,null,1963]
[null,null,null,null,1964]
[null,null,null,null,1965]
[null,null,null,null,1966]
[null,null,null,null,1967]
[null,null,null,null,1968]
[null,null,null,null,1969]
[null,null,null,null,1970]
[null,null,null,null,1971]
[null,null,null,null,1972]
[null,null,null,null,1973]
[null,null,null,null,1974]
[null,null,null,null,1975]
[null,null,null,null,1976]
[null,null,null,null,1977]
[null,null,null,null,1978]
[null,null,null,null,1979]
[null,null,null,null,1980]
[null,null,null,null,1981]
[null,null,null,null,1982]
[null,null,null,null,1983]
[null,null,null,null,1984]
[null,null,null,null,1985]
[null,null,null,null,1986]
[null,null,null,null,1987]
[null,null,null,null,1988]
[null,null,null,null,1989]
[null,null,null,null,1990]
[null,null,null,null,1991]
[null,null,null,null,1992]
[null,null,null,null,1993]
[null,null,null,null,1994]
[null,null,null,null,1995]
[null,null,null,null,1996]
[null,null,null,null,1997]
[null,null,null,null,1998]
[null,null,null,null,1999]
[null,null,null,null,2000]
[null,null,null,null,2001]
[null,null,null,null,2002]
[null,null,null,null,2003]
[null,null,null,null,2004]
[null,null,null,null,2005]
[null,null,null,null,2006]
[null,null,null,null,2007]
[null,null,null,null,2008]
[null,null,null,null,2009]
[null,null,null,null,2010]
[null,null,null,null,2011]
[null,null,null,null,2012]
[null,null,null,null,2013]
[null,null,null,null,2014]
[null,null,null,null,2015]
[null,null,null,null,2016]
[null,null,null,null,2017]
[null,null,null,null,2018]
[null,null,null,null,2019]
[null,null,null,null,2020]
[null,null,null,null,2021]
[null,null,null,null,2022]
[null,null,null,null,2023]
[null,null,null,null,2024]
[null,null,null,null,2025]
[null,null,null,null,2026]
[null,null,null,null,2027]
[null,null,null,null,2028]
[null,null,null,null,2029]
[null,null,null,null,2030]
[null,null,null,null,2031]
[null,null,null,null,2032]
[null,null,null,null,2033]
[null,null,null,null,2034]
[null,null,null,null,2035]
[null,null,null,null,2036]
[null,null,null,null,2037]
[null,null,null,null,2038]
[null,null,null,null,2039]
[null,null,null,null,2040]
[null,null,null,null,2041]
[null,null,null,null,2042]
[null,null,null,null,2043]
[null,null,null,null,2044]
[null,null,null,null,2045]
[null,null,null,null,2046]
[null,null,null,null,2047]
[null,null,null,null,2048]
[null,null,null,null,2049]
[null,null,null,null,2050]
[null,null,null,null,2051]
[null,null,null,null,2052]
[null,null,null,null,2053]
[null,null,null,null,2054]
[null,null,null,null,2055]
[null,null,null,null,2056]
[null,null,null,null,2057]
[null,null,null,null,2058]
[null,null,null,null,2059]
[null,null,null,null,2060]
[null,null,null,null,2061]
[null,null,null,null,2062]
[null,null,null,null,2063]
[null,null,null,null,2064]
[null,null,null,null,2065]
[null,null,null,null,2066]
[null,null,null,null,2067]
[null,null,null,null,2068]
[null,null,null,null,2069]
[null,null,null,null,2070]
[null,null,null,null,2071]
[null,null,null,null,2072]
[null,null,null,null,2073]
[null,null,null,null,2074]
[null,null,null,null,2075]
[null,null,null,null,2076]
[null,null,null,null,2077]
[null,null,null,null,2078]
[null,null,null,null,2079]
[null,null,null,null,2080]
[null,null,null,null,2081]
[null,null,null,null,2082]
[null,null,null,null,2083]
[null,null,null,null,2084]
[null,null,null,null,2085]
[null,null,null,null,2086]
[null,null,null,null,2087]
[null,null,null,null,2088]
[null,null,null,null,2089]
[null,null,null,null,2090]
[null,null,null,null,2091]
[null,null,null,null,2092]
[null,null,null,null,2093]
[null,null,null,null,2094]
[null,null,null,null,2095]
[null,null,null,null,2096]
[null,null,null,null,2097]
[null,null,null,null,2098]
[null,null,null,null,2099]
[null,null,null,null,2100]
[null,null,null,null,2101]
[null,null,null,null,2102]
[null,null,null,null,2103]
[null,null,null,null,2104]
[null,null,null,null,2105]
[null,null,null,null,2106]
[null,null,null,null,2107]
[null,null,null,null,2108]
[null,null,null,null,2109]
[null,null,null,null,2110]
[null,null,null,null,2111]
[null,null,null,null,2112]
[null,null,null,null,2113]
[null,null,null,null,2114]
[null,null,null,null,2115]
[null,null,null,null,2116]
[null,null,null,null,2117]
[null,null,null,null,2118]
[null,null,null,null,2119]
[null,null,null,null,2120]
[null,null,null,null,2121]
[null,null,null,null,2122]
[null,null,null,null,2123]
[null,null,null,null,2124]
[null,null,null,null,2125]
[null,null,null,null,2126]
[null,null,null,null,2127]
[null,null,null,null,2128]
[null,null,null,null,2129]
[null,null,null,null,2130]
[null,null,null,null,2131]
[null,null,null,null,2132]
[null,null,null,null,2133]
[null,null,null,null,2134]
[null,null,null,null,2135]
[null,null,null,null,2136]
[null,null,null,null,2137]
[null,null,null,null,2138]
[null,null,null,null,2139]
[null,null,null,null,2140]
[null,null,null,null,2141]
[null,null,null,null,2142]
[null,null,null,null,2143]
[null,null,null,null,2144]
[null,null,null,null,2145]
[null,null,null,null,2146]
[null,null,null,null,2147]
[null,null,null,null,2148]
[null,null,null,null,2149]
[null,null,null,null,2150]
[null,null,null,null,2151]
[null,null,null,null,2152]
[null,null,null,null,2153]
[null,null,null,null,2154]
[null,null,null,null,2155]
[null,null,null,null,2156]
[null,null,null,null,2157]
[null,null,null,null,2158]
[null,null,null,null,2159]
[null,null,null,null,2160]
[null,null,null,null,2161]
[null,null,null,null,2162]
[null,null,null,null,2163]
[null,null,null,null,2164]
[null,null,null,null,2165]
[null,null,null,null,2166]
[null,null,null,null,2167]
[null,null,null,null,2168]
[null,null,null,null,2169]
[null,null,null,null,2170]
[null,null,null,null,2171]
[null,null,null,null,2172]
[null,null,null,null,2173]
[null,null,null,null,2174]
[null,null,null,null,2175]
[null,null,null,null,2176]
[null,null,null,null,2177]
[null,null,null,null,2178]
[null,null,null,null,2179]
[null,null,null,null,2180]
[null,null,null,null,2181]
[null,null,null,null,2182]
[null,null,null,null,2183]
[null,null,null,null,2184]
[null,null,null,null,2185]
[null,null,null,null,2186]
[null,null,null,null,2187]
[null,null,null,null,2188]
[null,null,null,null,2189]
[null,null,null,null,2190]
[null,null,null,null,2191]
[null,null,null,null,2192]
[null,null,null,null,2193]
[null,null,null,null,2194]
[null,null,null,null,2195]
[null,null,null,null,2196]
[null,null,null,null,2197]
[null,null,null,null,2198]
[null,null,null,null,2199]
[null,null,null,null,2200]
[null,null,null,null,2201]
[null,null,null,null,2202]
[null,null,null,null,2203]
[null,null,null,null,2204]
[null,null,null,null,2205]
[null,null,null,null,2206]
[null,null,null,null,2207]
[null,null,null,null,2208]
[null,null,null,null,2209]
[null,null,null,null,2210]
[null,null,null,null,2211]
[null,null,null,null,2212]
[null,null,null,null,2213]
[null,null,null,null,2214]
[null,null,null,null,2215]
[null,null,null,null,2216]
[null,null,null,null,2217]
[null,null,null,null,2218]
[null,null,null,null,2219]
[null,null,null,null,2220]
[null,null,null,null,2221]
[null,null,null,null,2222]
[null,null,null,null,2223]
[null,null,null,null,2224]
[null,null,null,null,2225]
[null,null,null,null,2226]
[null,null,null,null,2227]
[null,null,null,null,2228]
[null,null,null,null,2229]
[null,null,null,null,2230]
[null,null,null,null,2231]
[null,null,null,null,2232]
[null,null,null,null,2233]
[null,null,null,null,2234]
[null,null,null,null,2235]
[null,null,null,null,2236]
[null,null,null,null,2237]
[null,null,null,null,2238]
[null,null,null,null,2239]
[null,null,null,null,2240]
[null,null,null,null,2241]
[null,null,null,null,2242]
[null,null,null,null,2243]
[null,null,null,null,2244]
[null,null,null,null,2245]
[null,null,null,null,2246]
[null,null,null,null,2247]
[null,null,null,null,2248]
[null,null,null,null,2249]
[null,null,null,null,2250]
[null,null,null,null,2251]
[null,null,null,null,2252]
[null,null,null,null,2253]
[null,null,null,null,2254]
[null,null,null,null,2255]
[null,null,null,null,2256]
[null,null,null,null,2257]
[null,null,null,null,2258]
[null,null,null,null,2259]
[null,null,null,null,2260]
[null,null,null,null,2261]
[null,null,null,null,2262]
[null,null,null,null,2263]
[null,null,null,null,2264]
[null,null,null,null,2265]
[null,null,null,null,2266]
[null,null,null,null,2267]
[null,null,null,null,2268]
[null,null,null,null,2269]
[null,null,null,null,2270]
[null,null,null,null,2271]
[null,null,null,null,2272]
[null,null,null,null,2273]
[null,null,null,null,2274]
[null,null,null,null,2275]
[null,null,null,null,2276]
[null,null,null,null,2277]
[null,null,null,null,2278]
[null,null,null,null,2279]
[null,null,null,null,2280]
[null,null,null,null,2281]
[null,null,null,null,2282]
[null,null,null,null,2283]
[null,null,null,null,2284]
[null,null,null,null,2285]
[null,null,null,null,2286]
[null,null,null,null,2287]
[null,null,null,null,2288]
[null,null,null,null,2289]
[null,null,null,null,2290]
[null,null,null,null,2291]
[null,null,null,null,2292]
[null,null,null,null,2293]
[null,null,null,null,2294]
[null,null,null,null,2295]
[null,null,null,null,2296]
[null,null,null,null,2297]
[null,null,null,null,2298]
[null,null,null,null,2299]
[null,null,null,null,2300]
[null,null,null,null,2301]
[null,null,null,null,2302]
[null,null,null,null,2303]
[null,null,null,null,2304]
[null,null,null,null,2305]
[null,null,null,null,2306]
[null,null,null,null,2307]
[null,null,null,null,2308]
[null,null,null,null,2309]
[null,null,null,null,2310]
[null,null,null,null,2311]
[null,null,null,null,2312]
[null,null,null,null,2313]
[null,null,null,null,2314]
[null,null,null,null,2315]
[null,null,null,null,2316]
[null,null,null,null,2317]
[null,null,null,null,2318]
[null,null,null,null,2319]
[null,null,null,null,2320]
[null,null,null,null,2321]
[null,null,null,null,2322]
[null,null,null,null,2323]
[null,null,null,null,2324]
[null,null,null,null,2325]
[null,null,null,null,2326]
[null,null,null,null,2327]
[null,null,null,null,2328]
[null,null,null,null,2329]
[null,null,null,null,2330]
[null,null,null,null,2331]
[null,null,null,null,2332]
[null,null,null,null,2333]
[null,null,null,null,2334]
[null,null,null,null,2335]
[null,null,null,null,2336]
[null,null,null,null,2337]
[null,null,null,null,2338]
[null,null,null,null,2339]
[null,null,null,null,2340]
[null,null,null,null,2341]
[null,null,null,null,2342]
[null,null,null,null,2343]
[null,null,null,null,2344]
[null,null,null,null,2345]
[null,null,null,null,2346]
[null,null,null,null,2347]
[null,null,null,null,2348]
[null,null,null,null,2349]
[null,null,null,null,2350]
[null,null,null,null,2351]
[null,null,null,null,2352]
[null,null,null,null,2353]
[null,null,null,null,2354]
[null,null,null,null,2355]
[null,null,null,null,2356]
[null,null,null,null,2357]
[null,null,null,null,2358]
[null,null,null,null,2359]
[null,null,null,null,2360]
[null,null,null,null,2361]
[null,null,null,null,2362]
[null,null,null,null,2363]
[null,null,null,null,2364]
[null,null,null,null,2365]
[null,null,null,null,2366]
[null,null,null,null,2367]
[null,null,null,null,2368]
[null,null,null,null,2369]
[null,null,null,null,2370]
[null,null,null,null,2371]
[null,null,null,null,2372]
[null,null,null,null,2373]
[null,null,null,null,2374]
[null,null,null,null,2375]
[null,null,null,null,2376]
[null,null,null,null,2377]
[null,null,null,null,2378]
[null,null,null,null,2379]
[null,null,null,null,2380]
[null,null,null,null,2381]
[null,null,null,null,2382]
[null,null,null,null,2383]
[null,null,null,null,2384]
[null,null,null,null,2385]
[null,null,null,null,2386]
[null,null,null,null,2387]
[null,null,null,null,2388]
[null,null,null,null,2389]
[null,null,null,null,2390]
[null,null,null,null,2391]
[null,null,null,null,2392]
[null,null,null,null,2393]
[null,null,null,null,2394]
[null,null,null,null,2395]
[null,null,null,null,2396]
[null,null,null,null,2397]
[null,null,null,null,2398]
[null,null,null,null,2399]
[null,null,null,null,2400]
[null,null,null,null,2401]
[null,null,null,null,2402]
[null,null,null,null,2403]
[null,null,null,null,2404]
[null,null,null,null,2405]
[null,null,null,null,2406]
[null,null,null,null,2407]
[null,null,null,null,2408]
[null,null,null,null,2409]
[null,null,null,null,2410]
[null,null,null,null,2411]
[null,null,null,null,2412]
[null,null,null,null,2413]
[null,null,null,null,2414]
[null,null,null,null,2415]
[null,null,null,null,2416]
[null,null,null,null,2417]
[null,null,null,null,2418]
[null,null,null,null,2419]
[null,null,null,null,2420]
[null,null,null,null,2421]
[null,null,null,null,2422]
[null,null,null,null,2423]
[null,null,null,null,2424]
[null,null,null,null,2425]
[null,null,null,null,2426]
[null,null,null,null,2427]
[null,null,null,null,2428]
[null,null,null,null,2429]
[null,null,null,null,2430]
[null,null,null,null,2431]
[null,null,null,null,2432]
[null,null,null,null,2433]
[null,null,null,null,2434]
[null,null,null,null,2435]
[null,null,null,null,2436]
[null,null,null,null,2437]
[null,null,null,null,2438]
[null,null,null,null,2439]
[null,null,null,null,2440]
[null,null,null,null,2441]
[null,null,null,null,2442]
[null,null,null,null,2443]
[null,null,null,null,2444]
[null,null,null,null,2445]
[null,null,null,null,2446]
[null,null,null,null,2447]
[null,null,null,null,2448]
[null,null,null,null,2449]
[null,null,null,null,2450]
[null,null,null,null,2451]
[null,null,null,null,2452]
[null,null,null,null,2453]
[null,null,null,null,2454]
[null,null,null,null,2455]
[null,null,null,null,2456]
[null,null,null,null,2457]
[null,null,null,null,2458]
[null,null,null,null,2459]
[null,null,null,null,2460]
[null,null,null,null,2461]
[null,null,null,null,2462]
[null,null,null,null,2463]
[null,null,null,null,2464]
[null,null,null,null,2465]
[null,null,null,null,2466]
[null,null,null,null,2467]
[null,null,null,null,2468]
[null,null,null,null,2469]
[null,null,null,null,2470]
[null,null,null,null,2471]
[null,null,null,null,2472]
[null,null,null,null,2473]
[null,null,null,null,2474]
[null,null,null,null,2475]
[null,null,null,null,2476]
[null,null,null,null,2477]
[null,null,null,null,2478]
[null,null,null,null,2479]
[null,null,null,null,2480]
[null,null,null,null,2481]
[null,null,null,null,2482]
[null,null,null,null,2483]
[null,null,null,null,2484]
[null,null,null,null,2485]
[null,null,null,null,2486]
[null,null,null,null,2487]
[null,null,null,null,2488]
[null,null,null,null,2489]
[null,null,null,null,2490]
[null,null,null,null,2491]
[null,null,null,null,2492]
[null,null,null,null,2493]
[null,null,null,null,2494]
[null,null,null,null,2495]
[null,null,null,null,2496]
[null,null,null,null,2497]
[null,null,null,null,2498]
[null,null,null,null,2499]
[null,null,null,null,2500]
[null,null,null,null,2501]
[null,null,null,null,2502]
[null,null,null,null,2503]
[null,null,null,null,2504]
[null,null,null,null,2505]
[null,null,null,null,2506]
[null,null,null,null,2507]
[null,null,null,null,2508]
[null,null,null,null,2509]
[null,null,null,null,2510]
[null,null,null,null,2511]
[null,null,null,null,2512]
[null,null,null,null,2513]
[null,null,null,null,2514]
[null,null,null,null,2515]
[null,null,null,null,2516]
[null,null,null,null,2517]
[null,null,null,null,2518]
[null,null,null,null,2519]
[null,null,null,null,2520]
[null,null,null,null,2521]
[null,null,null,null,2522]
[null,null,null,null,2523]
[null,null,null,null,2524]
[null,null,null,null,2525]
[null,null,null,null,2526]
[null,null,null,null,2527]
[null,null,null,null,2528]
[null,null,null,null,2529]
[null,null,null,null,2530]
[null,null,null,null,2531]
[null,null,null,null,2532]
[null,null,null,null,2533]
[null,null,null,null,2534]
[null,null,null,null,2535]
[null,null,null,null,2536]
[null,null,null,null,2537]
[null,null,null,null,2538]
[null,null,null,null,2539]
[null,null,null,null,2540]
[null,null,null,null,2541]
[null,null,null,null,2542]
[null,null,null,null,2543]
[null,null,null,null,2544]
[null,null,null,null,2545]
[null,null,null,null,2546]
[null,null,null,null,2547]
[null,null,null,null,2548]
[null,null,null,null,2549]
[null,null,null,null,2550]
[null,null,null,null,2551]
[null,null,null,null,2552]
[null,null,null,null,2553]
[null,null,null,null,2554]
[null,null,null,null,2555]
[null,null,null,null,2556]
[null,null,null,null,2557]
[null,null,null,null,2558]
[null,null,null,null,2559]
[null,null,null,null,2560]
[null,null,null,null,2561]
[null,null,null,null,2562]
[null,null,null,null,2563]
[null,null,null,null,2564]
[null,null,null,null,2565]
[null,null,null,null,2566]
[null,null,null,null,2567]
[null,null,null,null,2568]
[null,null,null,null,2569]
[null,null,null,null,2570]
[null,null,null,null,2571]
[null,null,null,null,2572]
[null,null,null,null,2573]
[null,null,null,null,2574]
[null,null,null,null,2575]
[null,null,null,null,2576]
[null,null,null,null,2577]
[null,null,null,null,2578]
[null,null,null,null,2579]
[null,null,null,null,2580]
[null,null,null,null,2581]
[null,null,null,null,2582]
[null,null,null,null,2583]
[null,null,null,null,2584]
[null,null,null,null,2585]
[null,null,null,null,2586]
[null,null,null,null,2587]
[null,null,null,null,2588]
[null,null,null,null,2589]
[null,null,null,null,2590]
[null,null,null,null,2591]
[null,null,null,null,2592]
[null,null,null,null,2593]
[null,null,null,null,2594]
[null,null,null,null,2595]
[null,null,null,null,2596]
[null,null,null,null,2597]
[null,null,null,null,2598]
[null,null,null,null,2599]
[null,null,null,null,2600]
[null,null,null,null,2601]
[null,null,null,null,2602]
[null,null,null,null,2603]
[null,null,null,null,2604]
[null,null,null,null,2605]
[null,null,null,null,2606]
[null,null,null,null,2607]
[null,null,null,null,2608]
[null,null,null,null,2609]
[null,null,null,null,2610]
[null,null,null,null,2611]
[null,null,null,null,2612]
[null,null,null,null,2613]
[null,null,null,null,2614]
[null,null,null,null,2615]
[null,null,null,null,2616]
[null,null,null,null,2617]
[null,null,null,null,2618]
[null,null,null,null,2619]
[null,null,null,null,2620]
[null,null,null,null,2621]
[null,null,null,null,2622]
[null,null,null,null,2623]
[null,null,null,null,2624]
[null,null,null,null,2625]
[null,null,null,null,2626]
[null,null,null,null,2627]
[null,null,null,null,2628]
[null,null,null,null,2629]
[null,null,null,null,2630]
[null,null,null,null,2631]
[null,null,null,null,2632]
[null,null,null,null,2633]
[null,null,null,null,2634]
[null,null,null,null,2635]
[null,null,null,null,2636]
[null,null,null,null,2637]
[null,null,null,null,2638]
[null,null,null,null,2639]
[null,null,null,null,2640]
[null,null,null,null,2641]
[null,null,null,null,2642]
[null,null,null,null,2643]
[null,null,null,null,2644]
[null,null,null,null,2645]
[null,null,null,null,2646]
[null,null,null,null,2647]
[null,null,null,null,2648]
[null,null,null,null,2649]
[null,null,null,null,2650]
[null,null,null,null,2651]
[null,null,null,null,2652]
[null,null,null,null,2653]
[null,null,null,null,2654]
[null,null,null,null,2655]
[null,null,null,null,2656]
[null,null,null,null,2657]
[null,null,null,null,2658]
[null,null,null,null,2659]
[null,null,null,null,2660]
[null,null,null,null,2661]
[null,null,null,null,2662]
[null,null,null,null,2663]
[null,null,null,null,2664]
[null,null,null,null,2665]
[null,null,null,null,2666]
[null,null,null,null,2667]
[null,null,null,null,2668]
[null,null,null,null,2669]
[null,null,null,null,2670]
[null,null,null,null,2671]
[null,null,null,null,2672]
[null,null,null,null,2673]
[null,null,null,null,2674]
[null,null,null,null,2675]
[null,null,null,null,2676]
[null,null,null,null,2677]
[null,null,null,null,2678]
[null,null,null,null,2679]
[null,null,null,null,2680]
[null,null,null,null,2681]
[null,null,null,null,2682]
[null,null,null,null,2683]
[null,null,null,null,2684]
[null,null,null,null,2685]
[null,null,null,null,2686]
[null,null,null,null,2687]
[null,null,null,null,2688]
[null,null,null,null,2689]
[null,null,null,null,2690]
[null,null,null,null,2691]
[null,null,null,null,2692]
[null,null,null,null,2693]
[null,null,null,null,2694]
[null,null,null,null,2695]
[null,null,null,null,2696]
[null,null,null,null,2697]
[null,null,null,null,2698]
[null,null,null,null,2699]
[null,null,null,null,2700]
[null,null,null,null,2701]
[null,null,null,null,2702]
[null,null,null,null,2703]
[null,null,null,null,2704]
[null,null,null,null,2705]
[null,null,null,null,2706]
[null,null,null,null,2707]
[null,null,null,null,2708]
[null,null,null,null,2709]
[null,null,null,null,2710]
[null,null,null,null,2711]
[null,null,null,null,2712]
[null,null,null,null,2713]
[null,null,null,null,2714]
[null,null,null,null,2715]
[null,null,null,null,2716]
[null,null,null,null,2717]
[null,null,null,null,2718]
[null,null,null,null,2719]
[null,null,null,null,2720]
[null,null,null,null,2721]
[null,null,null,null,2722]
[null,null,null,null,2723]
[null,null,null,null,2724]
[null,null,null,null,2725]
[null,null,null,null,2726]
[null,null,null,null,2727]
[null,null,null,null,2728]
[null,null,null,null,2729]
[null,null,null,null,2730]
[null,null,null,null,2731]
[null,null,null,null,2732]
[null,null,null,null,2733]
[null,null,null,null,2734]
[null,null,null,null,2735]
[null,null,null,null,2736]
[null,null,null,null,2737]
[null,null,null,null,2738]
[null,null,null,null,2739]
[null,null,null,null,2740]
[null,null,null,null,2741]
[null,null,null,null,2742]
[null,null,null,null,2743]
[null,null,null,null,2744]
[null,null,null,null,2745]
[null,null,null,null,2746]
[null,null,null,null,2747]
[null,null,null,null,2748]
[null,null,null,null,2749]
[null,null,null,null,2750]
[null,null,null,null,2751]
[null,null,null,null,2752]
[null,null,null,null,2753]
[null,null,null,null,2754]
[null,null,null,null,2755]
[null,null,null,null,2756]
[null,null,null,null,2757]
[null,null,null,null,2758]
[null,null,null,null,2759]
[null,null,null,null,2760]
[null,null,null,null,2761]
[null,null,null,null,2762]
[null,null,null,null,2763]
[null,null,null,null,2764]
[null,null,null,null,2765]
[null,null,null,null,2766]
[null,null,null,null,2767]
[null,null,null,null,2768]
[null,null,null,null,2769]
[null,null,null,null,2770]
[null,null,null,null,2771]
[null,null,null,null,2772]
[null,null,null,null,2773]
[null,null,null,null,2774]
[null,null,null,null,2775]
[null,null,null,null,2776]
[null,null,null,null,2777]
[null,null,null,null,2778]
[null,null,null,null,2779]
[null,null,null,null,2780]
[null,null,null,null,2781]
[null,null,null,null,2782]
[null,null,null,null,2783]
[null,null,null,null,2784]
[null,null,null,null,2785]
[null,null,null,null,2786]
[null,null,null,null,2787]
[null,null,null,null,2788]
[null,null,null,null,2789]
[null,null,null,null,2790]
[null,null,null,null,2791]
[null,null,null,null,2792]
[null,null,null,null,2793]
[null,null,null,null,2794]
[null,null,null,null,2795]
[null,null,null,null,2796]
[null,null,null,null,2797]
[null,null,null,null,2798]
[null,null,null,null,2799]
[null,null,null,null,2800]
[null,null,null,null,2801]
[null,null,null,null,2802]
[null,null,null,null,2803]
[null,null,null,null,2804]
[null,null,null,null,2805]
[null,null,null,null,2806]
[null,null,null,null,2807]
[null,null,null,null,2808]
[null,null,null,null,2809]
[null,null,null,null,2810]
[null,null,null,null,2811]
[null,null,null,null,2812]
[null,null,null,null,2813]
[null,null,null,null,2814]
[null,null,null,null,2815]
[null,null,null,null,2816]
[null,null,null,null,2817]
[null,null,null,null,2818]
[null,null,null,null,2819]
[null,null,null,null,2820]
[null,null,null,null,2821]
[null,null,null,null,2822]
[null,null,null,null,2823]
[null,null,null,null,2824]
[null,null,null,null,2825]
[null,null,null,null,2826]
[null,null,null,null,2827]
[null,null,null,null,2828]
[null,null,null,null,2829]
[null,null,null,null,2830]
[null,null,null,null,2831]
[null,null,null,null,2832]
[null,null,null,null,2833]
[null,null,null,null,2834]
[null,null,null,null,2835]
[null,null,null,null,2836]
[null,null,null,null,2837]
[null,null,null,null,2838]
[null,null,null,null,2839]
[null,null,null,null,2840]
[null,null,null,null,2841]
[null,null,null,null,2842]
[null,null,null,null,2843]
[null,null,null,null,2844]
[null,null,null,null,2845]
[null,null,null,null,2846]
[null,null,null,null,2847]
[null,null,null,null,2848]
[null,null,null,null,2849]
[null,null,null,null,2850]
[null,null,null,null,2851]
[null,null,null,null,2852]
[null,null,null,null,2853]
[null,null,null,null,2854]
[null,null,null,null,2855]
[null,null,null,null,2856]
[null,null,null,null,2857]
[null,null,null,null,2858]
[null,null,null,null,2859]
[null,null,null,null,2860]
[null,null,null,null,2861]
[null,null,null,null,2862]
[null,null,null,null,2863]
[null,null,null,null,2864]
[null,null,null,null,2865]
[null,null,null,null,2866]
[null,null,null,null,2867]
[null,null,null,null,2868]
[null,null,null,null,2869]
[null,null,null,null,2870]
[null,null,null,null,2871]
[null,null,null,null,2872]
[null,null,null,null,2873]
[null,null,null,null,2874]
[null,null,null,null,2875]
[null,null,null,null,2876]
[null,null,null,null,2877]
[null,null,null,null,2878]
[null,null,null,null,2879]
[null,null,null,null,2880]
[null,null,null,null,2881]
[null,null,null,null,2882]
[null,null,null,null,2883]
[null,null,null,null,2884]
[null,null,null,null,2885]
[null,null,null,null,2886]
[null,null,null,null,2887]
[null,null,null,null,2888]
[null,null,null,null,2889]
[null,null,null,null,2890]
[null,null,null,null,2891]
[null,null,null,null,2892]
[null,null,null,null,2893]
[null,null,null,null,2894]
[null,null,null,null,2895]
[null,null,null,null,2896]
[null,null,null,null,2897]
[null,null,null,null,2898]
[null,null,null,null,2899]
[null,null,null,null,2900]
[null,null,null,null,2901]
[null,null,null,null,2902]
[null,null,null,null,2903]
[null,null,null,null,2904]
[null,null,null,null,2905]
[null,null,null,null,2906]
[null,null,null,null,2907]
[null,null,null,null,2908]
[null,null,null,null,2909]
[null,null,null,null,2910]
[null,null,null,null,2911]
[null,null,null,null,2912]
[null,null,null,null,2913]
[null,null,null,null,2914]
[null,null,null,null,2915]
[null,null,null,null,2916]
[null,null,null,null,2917]
[null,null,null,null,2918]
[null,null,null,null,2919]
[null,null,null,null,2920]
[null,null,null,null,2921]
[null,null,null,null,2922]
[null,null,null,null,2923]
[null,null,null,null,2924]
[null,null,null,null,2925]
[null,null,null,null,2926]
[null,null,null,null,2927]
[null,null,null,null,2928]
[null,null,null,null,2929]
[null,null,null,null,2930]
[null,null,null,null,2931]
[null,null,null,null,2932]
[null,null,null,null,2933]
[null,null,null,null,2934]
[null,null,null,null,2935]
[null,null,null,null,2936]
[null,null,null,null,2937]
[null,null,null,null,2938]
[null,null,null,null,2939]
[null,null,null,null,2940]
[null,null,null,null,2941]
[null,null,null,null,2942]
[null,null,null,null,2943]
[null,null,null,null,2944]
[null,null,null,null,2945]
[null,null,null,null,2946]
[null,null,null,null,2947]
[null,null,null,null,2948]
[null,null,null,null,2949]
[null,null,null,null,2950]
[null,null,null,null,2951]
[null,null,null,null,2952]
[null,null,null,null,2953]
[null,null,null,null,2954]
[null,null,null,null,2955]
[null,null,null,null,2956]
[null,null,null,null,2957]
[null,null,null,null,2958]
[null,null,null,null,2959]
[null,null,null,null,2960]
[null,null,null,null,2961]
[null,null,null,null,2962]
[null,null,null,null,2963]
[null,null,null,null,2964]
[null,null,null,null,2965]
[null,null,null,null,2966]
[null,null,null,null,2967]
[null,null,null,null,2968]
[null,null,null,null,2969]
[null,null,null,null,2970]
[null,null,null,null,2971]
[null,null,null,null,2972]
[null,null,null,null,2973]
[null,null,null,null,2974]
[null,null,null,null,2975]
[null,null,null,null,2976]
[null,null,null,null,2977]
[null,null,null,null,2978]
[null,null,null,null,2979]
[null,null,null,null,2980]
[null,null,null,null,2981]
[null,null,null,null,2982]
[null,null,null,null,2983]
[null,null,null,null,2984]
[null,null,null,null,2985]
[null,null,null,null,2986]
[null,null,null,null,2987]
[null,null,null,null,2988]
[null,null,null,null,2989]
[null,null,null,null,2990]
[null,null,null,null,2991]
[null,null,null,null,2992]
[null,null,null,null,2993]
[null,null,null,null,2994]
[null,null,null,null,2995]
[null,null,null,null,2996]
[null,null,null,null,2997]
[null,null,null,null,2998]
[null,null,null,null,2999]
[null,null,null,null,3000]